{"text_format":"1","workbook":"xlsx","n_sheets":9,"sheets":["Deckblatt","Einführung","Auswahl","Indikatorenliste","Hilfsblatt","Hilfsblatt-Dashboard","Dashboard","Bewertungsübersicht","Bewertungs-Template"],"not_rendered":{"charts":22,"images":24,"macros":1,"external_links":0,"defined_names":13,"comments":0,"pivot_tables":0},"unopened":[],"bounds":{"document_bytes":16777216,"sheet_cells":100000,"rows_first":2000,"rows_last":500,"rows_between":2000,"halvings":0,"cell_chars":16384,"cell_head_chars":4096},"cells_cut":0,"cells_raw":0,"read":"whole","date_system":"1900"}

{"sheet":"Deckblatt","index":0,"n_rows":2,"n_cols":3,"rows_kept":2,"cut":false,"hidden":false,"merged":[[1,2,1,5]]}
[]
[null,null,"SDG - Performance Assessement-Tool for Company Engagement"]

{"sheet":"Einführung","index":1,"n_rows":23,"n_cols":6,"rows_kept":23,"cut":false,"hidden":false,"merged":[[1,2,1,5]]}
[]
[null,null,"Einführung zu den SDGs\nWie schätzen Sie die Relevanz der SDGs für Ihr Unternehmen ein?"]
[]
[]
[null,"Logo","SDG Nr.","Titel","Beschreibung relevanter Aspekte für Unternehmen","Relevanz"]
[]
[null,null,"SDG 1","Armut in allen ihren Formen und überall beenden","Globale Bekämpfung von Armut unterstützen\nZahlung gerechter Löhne, die ein menschenwürdiges Leben ermöglichen\nInnerbetriebliche Sozialschutzsysteme \nArbeitsplätze schaffen",1]
[null,null,"SDG 2","Den Hunger beenden, Ernährungssicherheit und eine bessere Ernährung erreichen und eine nachhaltige Landwirtschaft fördern","Globale Bekämpfung von Hunger unterstützen\nNachhaltige Praktiken zur Nahrungsmittelproduktion umsetzen\nInnovative Lösungen für dauerhafte Sicherstellung einer guten Ernährung\nLebensmittelsicherheit",1]
[null,null,"SDG 3","Ein gesundes Leben für alle Menschen jeden Alters gewährleisten und ihr Wohlergehen fördern","Forschung & Entwicklung im Bereich d. Technologien zum Gesundheitsschutz\nSchutz der Belegschaft durch Arbeits- und Gesundheitsschutz (Prävention)\nLangfristiger Erhalt der Arbeitnehmerinnenzufriedenheit\nEmissionsfreie Produkte entwickeln und vertreiben\nEntwicklungszusammenarbeit für globale Gesundheit und Wohlergehen",1]
[null,null,"SDG 4","Inklusive, gleichberechtigte und hochwertige Bildung gewährleisten und Möglichkeiten lebenslangen Lernens für alle fördern","Arbeitsplätze schaffen und vielseitige Einstiegsmöglichkeiten schaffen\nFörderung des Ausbaus von Bildungseinrichtungen\nEntwicklungszusammenarbeit für global gleichberechtigte Bildung\nFachkräftemangel vermindern durch Bildungsangebote",1]
[null,null,"SDG 5","Geschlechtergleichstellung erreichen und alle Frauen und Mädchen zur Selbstbestimmung befähigen","Diskriminierungen und Gewalt (gegen Frauen) beenden\nMehr Frauen in Führungspositionen\nWirtschaftliche Teilhabe und Chancengleichheit für Frauen\nGleiche Bezahlung von Männern und Frauen in gleichen Positionen\nVereinbarkeit von Privatem und Beruflichem",1]
[null,null,"SDG 6","Verfügbarkeit und nachhaltige Bewirtschaftung von Wasser und Sanitärversorgung für alle gewährleisten","Globaler Zugang zu sauberem Trinkwasser und Sanitäreinrichtungen\nKeine Einspeisung schädlicher Abwässer in Flüsse o. Ä.\nTechnologien zur Wasseraufbereitung entwickeln\nSteigerung der innerbetrieblichen Effizienz der Wassernutzung",1]
[null,null,"SDG 7","Zugang zu bezahlbarer, verlässlicher, nachhaltiger und moderner Energie für alle sichern","Steigerung der Energieeffizienz\nFörderung erneuerbarer Energien\nAusbau der Energieinfrastruktur\nForschung und Entwicklung neuer Technologien unterstützen Entwicklungszusammenarbeit für globalen Zugang zu bezahlbarer Energie",1]
[null,null,"SDG 8","Dauerhaftes, inklusives und nachhaltiges Wirtschaftswachstum, produktive Vollbeschäftigung und menschenwürdige Arbeit für alle fördern","Beitrag zu einem nachhaltigen Wirtschaftswachstum\nDiversifizierung und Innovation zur Schaffung von Wettbewerbsvorteilen\nErhöhung der Produktionseffizienz\nSchaffung von menschenwürdigen Arbeitsplätzen\nEinhaltung von Arbeits- und Gesundheitsschutzstandards",1]
[null,null,"SDG 9","Eine widerstandsfähige Infrastruktur aufbauen, inklusive und nachhaltige Industrialisierung fördern und Innovationen unterstützen","Steigerung der Ressourcen- und Energieeffizienz\nInklusive und nachhaltige Industrialisierung\nInnovationstätigkeit und Ausbau technologischer Kapazitäten\nGlobal gleichberechtigter Zugang zu Wertschöpfungsketten",1]
[null,null,"SDG 10","Ungleichheit in und zwischen Ländern verringern","(Wirtschaftliche) Inklusion von Menschen mit Behinderung \n(Wirtschaftliche) Integration von Menschen mit Migrationshintergrund\nGesellschaftliche Verantwortung übernehmen\nChancengleichheit herstellen und Ungleichheiten bekämpfen",1]
[null,null,"SDG 11","Städte und Siedlungen inklusiv, sicher, widerstandsfähig und nachhaltig gestalten","Nachhaltige Urbanisierung und Verkehrssysteme (z.B. Elektromobilität)\nVerringerung von städtischen Umweltbelastungen\nLebenswerte Städte schaffen\nUnterstützung des nachhaltigen Städtebaus in Entwicklungsländern",1]
[null,null,"SDG 12","Nachhaltige Konsum- und Produktionsmuster sicherstellen","Nachhaltige Bewirtschaftung von natürlichen Ressourcen \nRessourceneffizienz erhöhen \nKreislaufwirtschaft realisieren\nAbfallaufkommen senken und Bedarf an Verpackungsmaterialien minimieren\nNachhaltigkeitsberichterstattung",1]
[null,null,"SDG 13","Umgehend Maßnahmen zur Bekämpfung des Klimawandels und seiner Auswirkungen ergreifen","Resilienz und Adaption bezüglich der Folgen des Klimawandels\nTreibhausgas-Emissionen reduzieren\nTechnologien zur Bekämpfung / Abschwächung des Klimawandels\nKommunikation und Sensibilisierung bezüglich des Klimawandels\nKlimaschutz in betriebliche Strategien einbinden",1]
[null,null,"SDG 14","Ozeane, Meere und Meeresressourcen im Sinne nachhaltiger Entwicklung erhalten und nachhaltig nutzen","Produktion kurzlebiger Kunststoffprodukte vermeiden\nInternationale Zusammenarbeit für den Erhalt mariner Ökosysteme\nTechnologische Lösungen zur Verringerung der Meeresverschmutzung",1]
[null,null,"SDG 15","Landökosysteme schützen, wiederherstellen und ihre nachhaltige Nutzung fördern, Wälder nachhaltig bewirtschaften, Wüstenbildung bekämpfen, Bodendegradation beenden undumkehren und dem Verlust der biologischen Vielfalt ein Ende setzen","Ökologisch verträgliche Lieferkette\nInternationale Zusammenarbeit für den Erhalt terrestrischer Ökosysteme\nTechnologische Lösungen für weniger Verschmutzung der Ökosphäre\nBiodiversitätsverluste stoppen\nProduktion kurzlebiger, umweltschädlicher Produkte vermeiden",1]
[null,null,"SDG 16","Friedliche und inklusive Gesellschaften für eine nachhaltige Entwicklung fördern, allen Menschen Zugang zur Justiz ermöglichen und leistungsfähige, rechenschaftspflichtige und inklusive Institutionen auf allen Ebenen aufbauen","Gesellschaftliche Verantwortung übernehmen\nMenschenrechte einhalten und besonders Kinder schützen\nBekämpfung von Korruption und Bestechung\nRechtstaatlichkeit und rechtkonforme Organisation\nGerechter Wettbewerb und Planungssicherheit",1]
[null,null,"SDG 17","Umsetzungsmittel stärken und die globale Partnerschaft für nachhaltige Entwicklung mit neuem Leben erfüllen","Globale Partnerschaft und Kommunikation für nachhaltige Entwicklung\nGlobal freier Marktzugang\nBereitstellung von Finanzmitteln zur Förderung von Entwicklungsländern\nFörderung von Informations- und Kommunikationstechnologien",1]

{"sheet":"Auswahl","index":2,"n_rows":20,"n_cols":4,"rows_kept":20,"cut":false,"hidden":false,"merged":[[3,1,4,1],[1,2,1,4],[7,2,7,3]]}
[]
[null,null,"Auswahl"]
[]
[]
[]
[null,null,"Wählen Sie bitte über die Dropdown-Liste aus, zu welcher Thematik Sie Eingaben vornehmen wollen:","Alle Themen"]
[]
[null,null,"Nachfolgend finden Sie eine Liste aller für das ausgewählte Thema relevanten SDGs.\nFalls Sie nicht zu jedem der verfügbaren SDGs Bewertungen vornehmen möchten, können Sie die entsprechenden SDGs abwählen."]
[null,null,null,true]
[null,null,null,true]
[null,null,null,true]
[null,null,null,true]
[null,null,null,true]
[null,null,null,true]
[null,null,null,true]
[null,null,null,true]
[null,null,null,true]
[null,null,null,true]
[null,null,null,true]
[null,null,null,true]

{"sheet":"Indikatorenliste","index":3,"n_rows":358,"n_cols":26,"rows_kept":358,"cut":false,"hidden":true,"merged":[]}
[]
[null,"Indikator ID","Indikator Beschreibung","Information",null,"SDG 1","SDG 2","SDG 3","SDG 4","SDG 5","SDG 6","SDG 7","SDG 8","SDG 9","SDG 10","SDG 11","SDG 12","SDG 13","SDG 14","SDG 15","SDG 16","SDG 17",null,"Alle Themen","Kreislaufwirtschaft","Arbeit & Gesundheit"]
[null,null,null,null,null,{"$f":"SUM(F$4:F$506)","v":0},{"$f":"SUM(G$4:G$506)","v":0},101,43,68,40,44,253,116,90,0,{"$f":"SUM(Q$4:Q$506)","v":152},101,49,78,0,0]
[null,"Überschrift1","Kreislaufwirtschaft",null,null,0,0,0,0,0,1,1,1,1,0,0,1,1,1,1,0,0,null,1,1,0]
[null,"Überschrift2","Allgemeine Aspekte",null,null,0,0,0,0,0,1,1,1,1,0,0,1,1,1,1,0,0,null,1,1,0]
[null,"A1","Unser Unternehmen besitzt ein auf Kreislaufwirtschaft ausgerichtetes Geschäftsmodell.","Wichtige Eckpunkte eines kreislaufwirtschaftlichen Geschäftsmodells: Wiederverwendung, Aufbereitung, Reparatur, Recycling, Mehrfachnutzung etc. ",null,0,0,0,0,0,0,0,1,1,0,0,1,1,0,0,0,0,null,1,1,0]
[null,"A2","Wir erkennen die Existenz der Klimakrise an und ergreifen als Unternehmen aktiv Maßnahmen dagegen.",null,null,0,0,0,0,0,0,0,0,1,0,0,0,1,0,0,0,0,null,1,1,0]
[null,"A3","Unser Unternehmen agiert klimaneutral.","Ihre Unternehmensaktivitäten beeinflussen das Klima nicht negativ. Falls sie doch negative Klimaauswirkungen verursachen erreichen Sie Klimaneutralität durch Kompensationsleistungen (z. B. Aufforstungsprojekte).",null,0,0,0,0,0,0,0,0,1,0,0,0,1,0,0,0,0,null,1,1,0]
[null,"A4","Unser Ressourcenmanagement berücksichtigt und analysiert mögliche Auswirkungen auf Ökosysteme, Biodiversität und Menschen. ",null,null,0,0,0,0,0,1,0,1,1,0,0,0,1,1,1,0,0,null,1,1,0]
[null,"A5","Wir identifizieren und bewerten die Umweltrisiken, die von unseren Unternehmensaktivitäten ausgehen.","Auch Reisetätigkeiten oder die Beschaffung von Büromaterialien kann Umweltrisiken verursachen. In alle unternehmerischen Entscheidungen ist der Schutz der Umwelt einzubeziehen.",null,0,0,0,0,0,1,0,0,1,0,0,1,1,1,1,0,0,null,1,1,0]
[null,"A6","Wir identifizieren und bewerten die Umweltrisiken, die von unserer Produktion ausgehen.","In der Produktion ergeben sich Umweltrisiken bspw. durch Emission bzw. Exposition von Schadstoffen, Treibhausgasen oder auch Lärm.",null,0,0,0,0,0,1,0,1,1,0,0,1,1,0,1,0,0,null,1,1,0]
[null,"A7","Keine unserer unternehmerischen Aktivitäten beeinträchtigt Ökosysteme, Menschen oder Tiere mehr als nötig.",null,null,0,0,0,0,0,0,0,0,0,0,0,0,1,1,1,0,0,null,1,1,0]
[null,"A8","Über Kompensationsleistungen gleichen wir unsere negativen Umwelteinflüsse vollständig aus. ","Kompensationsleistungen sind beispielsweise Aufforstungsprojekte oder die Wiederherstellung stark beeinträchtigter Ökosysteme sein. ",null,0,0,0,0,0,1,0,0,0,0,0,1,1,1,1,0,0,null,1,1,0]
[null,"A9","Wir ergreifen Maßnahmen, um von unserer Produktion beeinträchtigte (aquatische) Ökosysteme zu schützen und erhalten. ","Die Installation von Filteranlagen oder auch die Abwasser- und Abfallbehandlung können zum Schutz von Ökosystemen beitragen. ",null,0,0,0,0,0,0,0,0,0,0,0,0,0,1,1,0,0,null,1,1,0]
[null,"A10","Die Unternehmensaktivitäten an unseren weltweiten Standorten gefährden keine Spezies, die auf der Roten Liste stehen. ","Schlagwort: Rote Liste\nAuf der Roten Liste werden die am stärksten bedrohten Spezies weltweit gesammelt. ",null,0,0,0,0,0,0,0,0,0,0,0,0,0,1,1,0,0,null,1,1,0]
[null,"A11","Die Unternehmensaktivitäten an unseren weltweiten Standorten sorgen nicht dafür, dass eine Spezies vom Aussterben bedroht ist.",null,null,0,0,0,0,0,0,0,0,0,0,0,0,0,1,1,0,0,null,1,1,0]
[null,"A12","Unsere Unternehmensaktivitäten führen nicht zu anthropogen herbeigeführten Katastrophen für die Natur.","Anthropogen herbeigeführte Katastrophen können beispielsweise nukleare Zwischenfälle, Erdbeben-aktivitäten aufgrund von Bergbau, aber auch Desertifikation sein. ",null,0,0,0,0,0,0,0,0,0,0,0,0,1,1,1,0,0,null,1,1,0]
[null,"A13","Wir ergreifen aktiv Maßnahmen für den Umweltschutz.","Z. B. Entwicklung von Projekten zum Umweltschutz an Unternehmensstandorten, Sensibilisierung der Mitarbeitenden ",null,0,0,0,0,0,1,0,0,0,0,0,0,1,1,1,0,0,null,1,1,0]
[null,"A14","Wir sind in Partnerschaften und Initiativen zum Schutz von Fauna und Ökosystemen engagiert. ",null,null,0,0,0,0,0,1,0,0,0,0,0,0,1,1,1,0,0,null,1,1,0]
[null,"A15","Wir berechnen den Wert der Ökosystem(dienst)leistungen der Ökosysteme in denen wir interagieren.","Schlagwort: Environmental Economic Accounting",null,0,0,0,0,0,0,0,1,0,0,0,1,1,1,1,0,0,null,1,1,0]
[null,"A16","Wir berücksichtigen den Wert von Ökosystem(dienst)leistungen bei unserer unternehmerischen Planung und Entscheidungsfindung.  ",null,null,0,0,0,0,0,0,0,1,0,0,0,1,1,1,1,0,0,null,1,1,0]
[null,"A17","Wir publizieren jährlich einen Nachhaltigkeitsbericht.",null,null,0,0,0,0,0,0,0,1,1,0,0,1,1,0,0,0,0,null,1,1,0]
[null,"A18","Wir fertigen eine Ökobilanz für unser gesamtes unternehmerisches Handeln an.","Systematische Analyse der Umweltwirkungen aller Unternehmensaktivitäten",null,0,0,0,0,0,0,0,1,1,0,0,1,1,0,0,0,0,null,1,1,0]
[null,"A19","Wir fertigen eine Ökobilanz für jedes unserer Produkte an. ","Systematische Analyse der Umweltwirkungen eines Produkts, entlang seines gesamten Lebenszyklus; \nSchlagwort: From Cradle to Grave",null,0,0,0,0,0,0,0,1,1,0,0,1,1,0,0,0,0,null,1,1,0]
[null,"A20","Wir schulen unsere Mitarbeitenden regelmäßig zum Thema Kreislaufwirtschaft.",null,null,0,0,0,0,0,0,0,1,1,0,0,1,1,0,0,0,0,null,1,1,0]
[null,"A21","Unser Unternehmen besitzt Umwelt- bzw. Nachhaltigkeitszertifizierungen. ","Z. B. EMAS-Zertifizierung, Zertifizierung nach der Umweltnorm ISO 14001",null,0,0,0,0,0,0,0,1,1,0,0,1,1,0,0,0,0,null,1,1,0]
[null,"A22","Unsere Produkte sind mit Öko- / Nachhaltigkeitslabels ausgezeichnet.","Z. B. Blauer Engel, EU-Energiesiegel",null,0,0,0,0,0,0,0,1,1,0,0,1,1,0,0,0,0,null,1,1,0]
[null,"A23","Wir ermitteln Kennzahlen zur Materialeffizienz unserer Produktion.","Die Materialeffizienz gibt das Verhältnis von verwendeten Materialien (Input) zum Produktoutput an.",null,0,0,0,0,0,0,0,1,1,0,0,1,0,0,1,0,0,null,1,1,0]
[null,"A24","Wir ermitteln Kennzahlen zur Materialeffizienz unserer Produkte. ",null,null,0,0,0,0,0,0,0,1,1,0,0,1,0,0,1,0,0,null,1,1,0]
[null,"A25","Wir ermitteln Kennzahlen zur Energieeffizienz unserer Produktion.","Die Energieeffizienz gibt an, wie viel Energie aufzuwenden ist, um einen bestimmten Nutzen zu erreichen; je geringer die Energieverluste, umso höher die Energieeffizienz.",null,0,0,0,0,0,0,1,0,1,0,0,1,1,0,0,0,0,null,1,1,0]
[null,"A26","Wir ermitteln Kennzahlen zur Energieeffizienz unserer Produkte. ",null,null,0,0,0,0,0,0,1,0,1,0,0,1,1,0,0,0,0,null,1,1,0]
[null,"A27","Wir ermitteln den CO2-Fußabdruck für unser gesamtes unternehmerisches Handeln. ","Der CO2-Fußabdruck ist ein Maß für die Menge an Kohlendioxid-emissionen, die durch Aktivitäten oder entlang des Lebenszyklus von Produkten auftreten. ",null,0,0,0,0,0,0,1,0,1,0,0,1,1,0,0,0,0,null,1,1,0]
[null,"A28","Wir ermitteln den CO2-Fußabdruck für unsere gesamte Produktion. ",null,null,0,0,0,0,0,0,1,0,1,0,0,1,1,0,0,0,0,null,1,1,0]
[null,"A29","Wir ermitteln den CO2-Fußabdruck für jedes einzelne unserer Produkte.",null,null,0,0,0,0,0,0,1,0,1,0,0,1,1,0,0,0,0,null,1,1,0]
[null,"Überschrift2","Produktentwicklung",null,null,0,0,0,0,0,1,1,1,1,0,0,1,1,1,1,0,0,null,1,1,0]
[null,"A30","Unsere Produkte sind so entwickelt und designt, dass ihre Produktion Ressourcen schont und keine Emissionen freisetzt.",null,null,0,0,0,0,0,1,0,1,1,0,0,1,1,0,1,0,0,null,1,1,0]
[null,"A31","Unsere Produkte sind so entwickelt und designt, dass ihre Nutzung Ressourcen schont und keine Emissionen freisetzt. ",null,null,0,0,0,0,0,1,0,1,1,0,0,1,1,1,1,0,0,null,1,1,0]
[null,"A32","Wir berücksichtigen Aspekte der Kreislaufwirtschaft bereits bei der Forschung und Entwicklung. ","Modularität von Produkten, gut recycelbare Produktstrukturen, Einsatz von Rezyklaten / Sekundärrohstoffen",null,0,0,0,0,0,1,1,0,1,0,0,1,1,1,1,0,0,null,1,1,0]
[null,"A33","Bereits in der Produktentwicklung achten wir auf eine hohe Lebensdauer unserer Produkte.",null,null,0,0,0,0,0,0,0,0,1,0,0,1,1,0,1,0,0,null,1,1,0]
[null,"A34","Bereits in der Produktentwicklung achten wir darauf energieeffiziente Produkte zu entwickeln. ",null,null,0,0,0,0,0,0,1,0,1,0,0,1,1,0,0,0,0,null,1,1,0]
[null,"A35","Unsere Produkte werden so entwickelt und designt, dass ihre Herstellung energieeffizient ist. ",null,null,0,0,0,0,0,0,1,0,1,0,0,1,1,0,0,0,0,null,1,1,0]
[null,"A36","Wir konzipieren unsere Produkte so, dass ihre Anfälligkeit für Verschleiß gering ist. ",null,null,0,0,0,0,0,0,0,1,0,0,0,1,0,0,0,0,0,null,1,1,0]
[null,"A37","Wir entwickeln unsere Produkte so, dass sie wartungs- und reparaturfähig sind.",null,null,0,0,0,0,0,0,0,1,1,0,0,1,1,0,0,0,0,null,1,1,0]
[null,"A38","Das bereits in der Entwicklung berücksichtigte hohe Maß an Standardisierung, vereinfacht die Reparatur unserer Produkte. ","Standardisierung vereinfacht die Bereitstellung von Ersatzteilen und Upgrades. ",null,0,0,0,0,0,0,0,1,1,0,0,1,0,0,0,0,0,null,1,1,0]
[null,"A39","Das bereits in der Entwicklung berücksichtigte hohe Maß an Modularität, vereinfacht die Reparatur unserer Produkte. ",null,null,0,0,0,0,0,0,0,1,1,0,0,1,0,0,0,0,0,null,1,1,0]
[null,"A40","Wir achten beim Design unserer Produkte darauf, dass sie  vollständig mit erneuerbaren Materialien herstellbar sind.",null,null,0,0,0,0,0,0,0,1,1,0,0,1,1,0,0,0,0,null,1,1,0]
[null,"A41","Wir achten beim Design unserer Produkte darauf, dass sie vollständig mit recycelten Materialien herstellbar sind. ",null,null,0,0,0,0,0,0,0,1,1,0,0,1,1,0,1,0,0,null,1,1,0]
[null,"A42","Wir nehmen billigend in Kauf, dass durch den Einsatz recycelter Materialien die optische Ästhetik unserer Produkte reduziert wird. ",null,null,0,0,0,0,0,0,0,0,1,0,0,1,1,0,0,0,0,null,1,1,0]
[null,"A43","Auch wenn wir recycelte Materialien einsetzen, wird sichergestellt, dass Qualität und Lebensdauer unserer Produkte nicht beeinflusst werden. ",null,null,0,0,0,0,0,0,0,0,1,0,0,1,0,0,0,0,0,null,1,1,0]
[null,"A44","Der Einsatz recycelter Materialien führt nicht dazu, dass die Nutzerfreundlichkeit unserer Produkte verringert wird. ",null,null,0,0,0,0,0,0,0,0,1,0,0,1,0,0,0,0,0,null,1,1,0]
[null,"Überschrift2","Wasser und Abwasser",null,null,0,0,0,0,0,1,1,1,1,0,0,1,1,1,1,0,0,null,1,1,0]
[null,"A45","In unseren Unternehmenszielen ist die Reduktion des Wasserverbrauchs verankert.","Gemeint ist der unternehmens-weite Wasserverbrauch, sowohl in der Produktion als auch in der Verwaltung. ",null,0,0,0,0,0,1,0,1,1,0,0,1,0,0,1,0,0,null,1,1,0]
[null,"A46","Wir messen unseren vollständigen Wasserverbrauch. ",null,null,0,0,0,0,0,1,0,1,1,0,0,1,0,0,1,0,0,null,1,1,0]
[null,"A47","Unsere Recycling- bzw. Wiederverwendungsquote von Wasser liegt bei 100 %.",null,null,0,0,0,0,0,1,0,0,0,0,0,1,0,0,1,0,0,null,1,1,0]
[null,"A48","Wir benötigen kein Wasser aus der öffentlichen Wasserversorgung",null,null,0,0,0,0,0,1,0,1,0,0,0,1,0,0,1,0,0,null,1,1,0]
[null,"A49","Wir beziehen kein Wasser aus Grundwasserbrunnen. ",null,null,0,0,0,0,0,1,0,1,0,0,0,1,0,0,1,0,0,null,1,1,0]
[null,"A50","Wir führen unser gesamtes, an allen Standorten verbrauchtes Wasser im Kreislauf.",null,null,0,0,0,0,0,1,0,0,0,0,0,1,0,0,1,0,0,null,1,1,0]
[null,"A51","Wir speisen kein Abwasser in die kommunale Kanalisation ein.",null,null,0,0,0,0,0,1,0,0,0,0,0,1,0,0,1,0,0,null,1,1,0]
[null,"A52","Verunreinigtes Wasser bereiten wir selbst auf und nutzen es dann weiterhin in der Kreislaufführung.",null,null,0,0,0,0,0,1,0,0,0,0,0,1,0,0,1,0,0,null,1,1,0]
[null,"A53","Wir messen unsere vollständige Abwassereinspeisung in die kommunale Kanalisation.",null,null,0,0,0,0,0,1,0,1,0,0,0,1,0,0,1,0,0,null,1,1,0]
[null,"A54","Wir bereiten unser Abwasser auf, bevor wir es in die öffentliche Kanalisation einspeisen.",null,null,0,0,0,0,0,1,0,0,0,0,0,1,0,0,1,0,0,null,1,1,0]
[null,"A55","Wir speisen nur für die städtische Kläranlage unbedenkliche Abwässer in die Kanalisation ein.","Unsere Abwässer werden vor der Einleitung in die öffentliche Kanalisation so vorbehandelt, dass die zuständige Kläranlage mit ihren vorhandenen Kapa-zitäten und Technologien keine Probleme bekommt.",null,0,0,0,0,0,1,0,0,0,0,0,1,0,0,1,0,0,null,1,1,0]
[null,"A56","Im letzten Jahr traten keine ungeplanten Wasseraustritte auf.","Ungeplante Wasseraustritte sind beispielsweise Leckagen. ",null,0,0,0,0,0,1,0,1,0,0,0,1,0,0,1,0,0,null,1,1,0]
[null,"A57","Wir wissen von jedem unserer Abwasserströme, wohin unser Abwasser fließt. ","Auf unserem Unternehmensgelände gibt es keine Abflüsse, Rohre etc. deren Ursprung oder Ziel wir nicht kennen.",null,0,0,0,0,0,1,0,0,0,0,0,1,0,0,1,0,0,null,1,1,0]
[null,"A58","Wir kennen und dokumentieren zu jedem Zeitpunkt der Produktion die Belastung des von uns genutzten Wassers.",null,null,0,0,0,0,0,1,0,1,0,0,0,0,0,0,1,0,0,null,1,1,0]
[null,"A59","Wasser, das wir in die Umwelt einspeisen, hat nicht das Potential Ökosysteme zu beeinträchtigen.","Wir speisen nur sauberes oder ausreichend vorbehandeltes Wasser direkt in die Umwelt ein.",null,0,0,0,0,0,1,0,0,0,0,0,0,0,1,1,0,0,null,1,1,0]
[null,"A60","Wir nutzen Technologien, um in unseren Prozessen Wasser einzusparen.",null,null,0,0,0,0,0,1,0,1,1,0,0,1,0,0,1,0,0,null,1,1,0]
[null,"A61","Wir erfassen unseren Wasser-Fußabdruck für das gesamte Unternehmen.","Schlagworte: Wasser-Fußabdruck, virtuelles Wasser",null,0,0,0,0,0,1,0,1,1,0,0,1,0,0,1,0,0,null,1,1,0]
[null,"A62","Wir erfassen den Wasser-Fußabdruck unserer einzelnen Produkte.",null,null,0,0,0,0,0,1,0,1,1,0,0,1,0,0,1,0,0,null,1,1,0]
[null,"A63","Wir setzen \"Water-Awareness\"-Kampagnen um und klären unsere Mitarbeiter über Einsparpotentiale auf. ","Mit \"Water-Awareness\"-Kampagnen können Beschäftigte und KonsumentInnen für einen nach-haltigen Umgang mit Wasser sensibilisiert werden.",null,0,0,0,0,0,1,0,0,0,0,0,1,0,0,0,0,0,null,1,1,0]
[null,"Überschrift2","Abfälle",null,null,0,0,0,0,0,1,1,1,1,0,0,1,1,1,1,0,0,null,1,1,0]
[null,"A64","Wir messen alle im Unternehmen auftretenden Abfallströme.",null,null,0,0,0,0,0,0,0,1,1,0,0,1,0,0,0,0,0,null,1,1,0]
[null,"A65","In unseren Unternehmenszielen ist die Abfallreduktion verankert. ",null,null,0,0,0,0,0,0,0,1,1,0,0,1,0,0,0,0,0,null,1,1,0]
[null,"A66","Im vergangenen Jahr konnten wir die Mengen aller bei uns auftretenden Abfallfraktionen vermindern. ","Abfallfraktionen: Z. B. Kartonagen, Verbundmaterialien, Folien",null,0,0,0,0,0,0,0,1,1,0,0,1,0,0,0,0,0,null,1,1,0]
[null,"A67","Bei uns treten keine Abfälle auf, die extern (energetisch) verwertet oder deponiert werden müssten.",null,null,0,0,0,0,0,0,0,1,0,0,0,1,0,0,0,0,0,null,1,1,0]
[null,"A68","Bei uns fallen keine gefährlichen Abfälle an. ","In Deutschland weist die Abfallverzeichnis-Verordnung gefährliche Abfälle aus.",null,0,0,0,0,0,0,0,1,0,0,0,1,0,0,1,0,0,null,1,1,0]
[null,"A69","Gefährliche Abfälle können wir unternehmensintern aufbereiten und wiederverwenden.",null,null,0,0,0,0,0,0,0,1,1,0,0,1,0,0,0,0,0,null,1,1,0]
[null,"A70","Unsere gefährlichen Abfälle werden von spezialisierten Entsorgungsunternehmen verwertet.",null,null,0,0,0,0,0,0,0,1,0,0,0,1,0,0,0,0,0,null,1,1,0]
[null,"A71","Wir verursachen keine Abfälle, die energetisch verwertet werden.",null,null,0,0,0,0,0,0,1,1,1,0,0,1,1,0,1,0,0,null,1,1,0]
[null,"A72","Wir verursachen keine Abfälle, die deponiert werden.",null,null,0,0,0,0,0,0,0,1,0,0,0,1,1,0,1,0,0,null,1,1,0]
[null,"A73","Unsere gesamten Abfälle können recycelt oder wiederverwendet werden.",null,null,0,0,0,0,0,0,0,1,1,0,0,1,1,0,1,0,0,null,1,1,0]
[null,"A74","Bei unserer Produktion treten keine verwertungsbedürftigen Nebenprodukte, Überschüsse oder Rückstände auf. ",null,null,0,0,0,0,0,0,0,1,1,0,0,1,0,0,0,0,0,null,1,1,0]
[null,"A75","Wir recyceln Nebenprodukte, Überschüsse oder Rückstände aus der Produktion vollständig.",null,null,0,0,0,0,0,0,0,1,1,0,0,1,0,0,0,0,0,null,1,1,0]
[null,"A76","Beim Recycling unserer Produkte kommt es nicht zu Materialverlusten.",null,null,0,0,0,0,0,0,0,1,1,0,0,1,0,0,0,0,0,null,1,1,0]
[null,"A77","Altprodukte werden über ein Rückführsystem an uns zurückgegeben und recycelt. ","Rückführsystem können beispielsweise öffentliche Sammelstellen, aber auch die Möglichkeit Altgeräte kostenlos im Einzelhandel abzugeben oder selbstständig einzuschicken sein. ",null,0,0,0,0,0,0,0,1,1,0,0,1,0,0,0,0,0,null,1,1,0]
[null,"A78","Wir ergreifen Maßnahmen und führen Programme zur Abfallreduktion durch. ","Z. B. Optimierungsmaßnahmen zur Reduktion von Produktionsrückständen oder Verschnitt",null,0,0,0,0,0,0,0,1,0,0,0,1,1,0,1,0,0,null,1,1,0]
[null,"Überschrift2","Rohstoffe",null,null,0,0,0,0,0,1,1,1,1,0,0,1,1,1,1,0,0,null,1,1,0]
[null,"A79","Wir benötigen keine Rohstoffe von externen Zulieferern, sondern gewinnen alle Stoffe für unseren Produktionsinput aus Recycling. ",null,null,0,0,0,0,0,0,0,1,1,0,0,1,1,1,1,0,0,null,1,1,0]
[null,"A80","Wir kennen die Qualität der Rohstoffe, die wir verwenden.",null,null,0,0,0,0,0,0,0,1,0,0,0,0,0,0,0,0,0,null,1,1,0]
[null,"A81","Wir kennen die genaue Herkunft der Rohstoffe, die wir verwenden.",null,null,0,0,0,0,0,0,0,1,0,0,0,1,1,1,1,0,0,null,1,1,0]
[null,"A82","Wir können belegen, dass unsere zugelieferten Rohstoffe aus verantwortungsvollem Anbau / Abbau stammen. ","Verantwortungsvoller Anbau oder Abbau von Rohstoffen kann beispielsweise über Zertifizierungen oder Umweltlabel nachgewiesen werden.",null,0,0,0,0,0,0,0,1,0,0,0,1,1,1,1,0,0,null,1,1,0]
[null,"A83","Die Extraktionsmethoden für unsere (zugelieferten) Rohstoffe erhalten die Regenerationsfähigkeit der Natur.",null,null,0,0,0,0,0,0,0,1,0,0,0,1,0,1,1,0,0,null,1,1,0]
[null,"A84","Wir verwenden nur nicht-erneuerbare Materialien, bei deren Abbau keine systematische Beschädigung von Ökosystemen und Gemeinschaften stattfindet. ","Systematische Beschädigung von Ökosystemen geschieht z. B. bei zerstörerischen Bergbaupraktiken (u. a. Mountaintop Removal) oder Brandrodungen",null,0,0,0,0,0,0,0,1,0,0,0,1,0,1,1,0,0,null,1,1,0]
[null,"A85","Wir wissen auf welche Art und Weise unsere Rohstoffe abgebaut / hergestellt werden. ",null,null,0,0,0,0,0,0,0,1,0,0,0,1,1,1,1,0,0,null,1,1,0]
[null,"A86","Wir verwenden keine Rohstoffe deren Vorkommen in Zukunft knapp werden könnte.","Die EU veröffentlicht regelmäßig eine Liste mit kritischen Rohstoffen, für die in Zukunft ein Versorgungsrisiko bestehen kann. ",null,0,0,0,0,0,0,0,1,1,0,0,1,0,0,0,0,0,null,1,1,0]
[null,"A87","Wir verwenden keine Rohstoffe aus nicht-erneuerbaren Ressourcen. ",null,null,0,0,0,0,0,0,0,1,1,0,0,1,1,1,1,0,0,null,1,1,0]
[null,"A88","Der Abbau oder die Herstellung unserer Rohstoffe bedroht keine gefährdeten Tier- / Pflanzenarten.",null,null,0,0,0,0,0,0,0,1,0,0,0,0,0,1,1,0,0,null,1,1,0]
[null,"A89","Der Abbau oder die Herstellung unserer Rohstoffe verursacht keine regionalen Konflikte / Verstöße gegen Menschenrechte.",null,null,0,0,0,0,0,0,0,1,1,0,0,0,0,0,0,0,0,null,1,1,0]
[null,"Überschrift2","Produktionsinput und -output",null,null,0,0,0,0,0,1,1,1,1,0,0,1,1,1,1,0,0,null,1,1,0]
[null,"A90","Das mengenmäßige Verhältnis von Produktionsinput zu Produktionsoutput ist 1.","Das heißt, die Materialeffizienz liegt bei 100 %.",null,0,0,0,0,0,0,0,1,1,0,0,1,0,0,0,0,0,null,1,1,0]
[null,"A91","Unser Materialinput für die Produktion besteht vollständig aus recycelten Materialien. ",null,null,0,0,0,0,0,0,0,1,0,0,0,1,1,0,0,0,0,null,1,1,0]
[null,"A92","Unser Materialinput für die Produktion stammt vollständig aus erneuerbaren Ressourcen. ",null,null,0,0,0,0,0,0,0,1,0,0,0,1,1,0,0,0,0,null,1,1,0]
[null,"A93","In unserem Produktionsinput und -output sind keinerlei gefährliche Rohstoffe oder Materialien enthalten. ","Gefährlich sind Stoffe, die anhand des Global harmo-nisierten Systems zur Einstufung und Kenn-zeichnung von Chemikalien dementsprechend eingestuft sind. (Kennzeichnung mit Gefahrensymbolen)",null,0,0,0,0,0,0,0,1,0,0,0,1,1,0,1,0,0,null,1,1,0]
[null,"A94","Wir stellen Kunststoffe für unsere Produkte vollständig aus Rezyklat her. ",null,null,0,0,0,0,0,0,0,1,1,0,0,1,1,0,0,0,0,null,1,1,0]
[null,"A95","In unserer Produktion fällt kein Ausschuss an. ",null,null,0,0,0,0,0,0,0,1,1,0,0,1,0,0,0,0,0,null,1,1,0]
[null,"A96","Bei unserer Produktion treten keine Nebenprodukte, Überschüsse oder Rückstände auf.",null,null,0,0,0,0,0,0,0,1,1,0,0,1,0,0,0,0,0,null,1,1,0]
[null,"A97","Es findet kein Downcycling der recycelten Inputmaterialien statt. ","Downcycling findet statt, wenn ein Produkt wiederverwendet / recycelt wird und das neue Produkt von schlechterer Qualität als das ursprüngliche ist.",null,0,0,0,0,0,0,0,1,1,0,0,1,1,0,0,0,0,null,1,1,0]
[null,"A98","Altprodukte oder nicht mehr reparierbare Produkte dienen als Inputmaterialien für neue Produkte. ",null,null,0,0,0,0,0,0,0,1,1,0,0,1,1,0,0,0,0,null,1,1,0]
[null,"Überschrift2","Energien und Kraftstoffe",null,null,0,0,0,0,0,1,1,1,1,0,0,1,1,1,1,0,0,null,1,1,0]
[null,"A99","Unser unternehmensweites Ziel ist, nur Energien aus erneuerbaren Ressourcen zu verwenden. ","Mit Energien ist in diesem Fall nicht nur Elektrizität gemeint, sondern auch Energien zum Heizen und Kühlen oder zur Erzeugung von Druckluft. Ebenfalls sind alle Energien zum Antrieb der innerbetrieblichen Transportfahrzeuge gemeint. ",null,0,0,0,0,0,0,1,1,1,0,0,1,1,0,0,0,0,null,1,1,0]
[null,"A100","Alle Energien, die wir verbrauchen stammen aus erneuerbaren Ressourcen.",null,null,0,0,0,0,0,0,1,1,1,0,0,1,1,0,0,0,0,null,1,1,0]
[null,"A101","Wir nutzen Technologien, die dem aktuellen Stand der Technik entsprechen, um unseren Energieverbrauch zu reduzieren. ","Schlagwort: Stand der Technik",null,0,0,0,0,0,0,1,0,1,0,0,0,1,0,0,0,0,null,1,1,0]
[null,"A102","Wir führen Kampagnen und Initiativen zur Energiereduktion durch. ","Z. B. Einsparkampagnen (\"Standby vermeiden\")",null,0,0,0,0,0,0,1,0,1,0,0,0,0,0,0,0,0,null,1,1,0]
[null,"A103","Wir schaffen es jährlich unseren Energieverbrauch zu reduzieren. ",null,null,0,0,0,0,0,0,1,0,1,0,0,1,1,0,0,0,0,null,1,1,0]
[null,"A104","Wir messen und dokumentieren den gesamten Energieverbrauch für unser Unternehmen. ",null,null,0,0,0,0,0,0,1,0,1,0,0,1,0,0,0,0,0,null,1,1,0]
[null,"A105","Wir messen und dokumentieren den gesamten Kraftstoffverbrauch unserer Maschinen.","Maschinen sind hier alle in der Produktion verwendeten Anlagen, die den Einsatz von Kraftstoffen erfordern (z. B. Pumpen, Kompressoren)",null,0,0,0,0,0,0,0,0,1,0,0,1,0,0,0,0,0,null,1,1,0]
[null,"A106","Wir messen und dokumentieren den gesamten Kraftstoff- oder Energieverbrauch unserer Transportmittel.","Transportmittel sind sowohl Flurförderfahrzeuge wie Gabelstapler als auch die Firmenflotte.",null,0,0,0,0,0,0,1,0,1,0,0,1,0,0,0,0,0,null,1,1,0]
[null,"A107","Unsere Transportmittel werden nicht mit Dieselkraftstoff betrieben.",null,null,0,0,0,0,0,0,0,0,1,0,0,1,1,0,0,0,0,null,1,1,0]
[null,"A108","Unsere Transportmittel werden nur mit erneuerbaren Energien angetrieben.","Z. B. Elektro-Fahrzeuge in der Firmenflotte",null,0,0,0,0,0,0,1,0,1,0,0,1,1,0,0,0,0,null,1,1,0]
[null,"A109","Unsere Maschinen werden nur mit erneuerbaren Kraftstoffen angetrieben.",null,null,0,0,0,0,0,0,0,0,1,0,0,1,1,0,0,0,0,null,1,1,0]
[null,"A110","Unsere Maschinen werden nur mit erneuerbaren Energien angetrieben. ",null,null,0,0,0,0,0,0,1,0,1,0,0,1,1,0,0,0,0,null,1,1,0]
[null,"A111","Wir kennen die einzelnen Stromquellen des Energiemix, den wir verwenden. ",null,null,0,0,0,0,0,0,1,0,0,0,0,0,0,0,0,0,0,null,1,1,0]
[null,"A112","In unserem Energiemix kommen nur erneuerbare Energien vor. ",null,null,0,0,0,0,0,0,1,0,1,0,0,1,1,1,1,0,0,null,1,1,0]
[null,"A113","Die Elektrizität, die wir nutzen, stammt aus erneuerbaren Ressourcen.",null,null,0,0,0,0,0,0,1,0,1,0,0,1,1,1,1,0,0,null,1,1,0]
[null,"A114","Wir heizen und kühlen nur mit Energie aus erneuerbaren Ressourcen.",null,null,0,0,0,0,0,0,1,0,1,0,0,1,1,1,1,0,0,null,1,1,0]
[null,"A115","Wir verwenden keine Energie, die aus Kohle gewonnen wurde. ",null,null,0,0,0,0,0,0,1,0,1,0,0,1,1,1,1,0,0,null,1,1,0]
[null,"A116","Wir stellen aus erneuerbaren Ressourcen unsere eigene Energie her.","Z. B. Über Solarpanels auf den Dächern der Unternehmensstandorte",null,0,0,0,0,0,0,1,1,1,0,0,1,1,1,1,0,0,null,1,1,0]
[null,"A117","Wir stellen unsere gesamten benötigten Energien selbst her und sind damit autark von öffentlichen Versorgungsnetzen. ",null,null,0,0,0,0,0,0,1,1,1,0,0,1,1,1,1,0,0,null,1,1,0]
[null,"A118","Wir stellen aus erneuerbaren Ressourcen unseren gesamten Bedarf an Elektrizität selbst her.",null,null,0,0,0,0,0,0,1,1,1,0,0,1,1,1,1,0,0,null,1,1,0]
[null,"A119","Einen Teil der von uns nachhaltig gewonnenen Energie speisen wir in das öffentliche Versorgungsnetz ein. ",null,null,0,0,0,0,0,0,1,1,0,0,0,0,1,1,1,0,0,null,1,1,0]
[null,"A120","Für jeden unserer Standorte wurde eine Begehung (Site-Review) zum Energieverbrauch duchgeführt. ","Rechtlich fixiert im Gesetz über Energiedienst-leistungen und andere Energieeffizienzmaßnahmen; Audits beispielsweise nach EMAS oder ISO 50001",null,0,0,0,0,0,0,1,0,1,0,0,0,1,0,0,0,0,null,1,1,0]
[null,"A121","Wir schulen unsere Mitarbeitenden zum Thema Energieeffizienz und Verbrauchsreduktion. ",null,null,0,0,0,0,0,0,1,1,0,0,0,0,0,0,0,0,0,null,1,1,0]
[null,"Überschrift2","Emissionen",null,null,0,0,0,0,0,1,1,1,1,0,0,1,1,1,1,0,0,null,1,1,0]
[null,"A122","Wir haben eine unternehmensweite Strategie zur Verminderung unserer gasförmigen und flüssigen Emissionen.","Gasförmig: Treibhausgasemissionen\nFlüssig: Aussickerungen aus Wertstoffbehältern o.Ä.",null,0,0,0,0,0,0,0,1,1,0,0,1,1,0,0,0,0,null,1,1,0]
[null,"A123","Wir haben eine unternehmensweite Strategie zur Verminderung unserer Treibhausgasemissionen. ",null,null,0,0,0,0,0,0,0,0,1,0,0,1,1,0,0,0,0,null,1,1,0]
[null,"A124","Unser Unternehmen setzt weder in der Produktion noch in der Verwaltung gasförmige oder flüssige Emissionen frei. ",null,null,0,0,0,0,0,0,0,1,1,0,0,1,1,0,0,0,0,null,1,1,0]
[null,"A125","In unserer Produktion treten keine Treibhausgasemissionen auf. ",null,null,0,0,0,0,0,0,0,0,1,0,0,1,1,0,0,0,0,null,1,1,0]
[null,"A126","In unserer Produktion treten keine Kohlenstoffdioxid-Emissionen auf.","Schlagwort: Kohlenstoffdioxid-Emissionen\nsiehe Umweltbundesamt für Angaben zu Quellen",null,0,0,0,0,0,0,0,0,1,0,0,1,1,0,0,0,0,null,1,1,0]
[null,"A127","In unserer Produktion treten keine Methan-Emissionen auf. ","Schlagwort: Methan-Emissionen\nsiehe Umweltbundesamt für Angaben zu Quellen",null,0,0,0,0,0,0,0,0,1,0,0,1,1,0,0,0,0,null,1,1,0]
[null,"A128","In unserer Produktion treten keine Distickstoffmonoxid-Emissionen auf.","Schlagwort: Distickstoffmonoxid-Emissionen\nsiehe Umweltbundesamt für Angaben zu Quellen",null,0,0,0,0,0,0,0,0,1,0,0,1,1,0,0,0,0,null,1,1,0]
[null,"A129","In unsere Produktion treten keine ozonschichtabbauenden Emissionen auf.","Schlagwort: ozonabbauende Stoffe",null,0,0,0,0,0,0,0,0,1,0,0,1,1,0,0,0,0,null,1,1,0]
[null,"A130","Wir erfassen unsere Scope 1 Treibhausgas-Emissionen.","Scope 1: alle direkten Treibhausgas-Emissionen werden erfasst (z. B. auch solche, die durch Verbrennungsprozesse in eigenen Anlagen auftreten)",null,0,0,0,0,0,0,1,1,1,0,0,1,1,0,0,0,0,null,1,1,0]
[null,"A131","Wir erfassen unsere Scope 2 Treibhausgas-Emissionen.","Scope 2: zusätzlich werden auch Treibhausgasemissionen, die zum Beispiel mit zugekaufter Energie (z. B. Elektrizität) verbunden sind, werden erfasst. ",null,0,0,0,0,0,0,1,1,1,0,0,1,1,0,0,0,0,null,1,1,0]
[null,"A132","Wir erfassen unsere Scope 3 Treibhausgas-Emissionen.","Scope 3: zusätzlich werden auch indirekte Treibhausgasemissionen (z. B. durch Geschäftsreisen) erfasst.",null,0,0,0,0,0,0,1,1,1,0,0,1,1,0,0,0,0,null,1,1,0]
[null,"A133","Über Begehungen und Audits werden regelmäßig die Emittenten identifiziert und analysiert. ",null,null,0,0,0,0,0,0,0,0,1,0,0,0,1,0,0,0,0,null,1,1,0]
[null,"A134","Wir berechnen die Emissionen, die unsere Produkte während ihrer Lebensdauer freisetzen. ","Schlagwort: Ökobilanz für Produkte",null,0,0,0,0,0,0,0,1,1,0,0,1,1,0,0,0,0,null,1,1,0]
[null,"A135","Über Begehungen und genaue Messungen erfassen wir \"fugitive emissions\".","\"fugitive emissions\" sind diffuse Emissionen (können keiner bestimmten Quelle zugeordnet werden, entstehen beispielsweise durch Verwehungen oder Leckagen)",null,0,0,0,0,0,0,0,0,1,0,0,1,1,0,0,0,0,null,1,1,0]
[null,"Überschrift2","Verpackung",null,null,0,0,0,0,0,1,1,1,1,0,0,1,1,1,1,0,0,null,1,1,0]
[null,"A136","Wir verwenden keine Verpackungsmaterialien. ",null,null,0,0,0,0,0,0,0,1,1,0,0,1,0,1,1,0,0,null,1,1,0]
[null,"A137","Wir verwenden keine Leichtstoffverpackungen. ","Leichtstoffverpackungen sind Verkaufsverpackungen aus Kunststoff, Metall oder Verbundstoff",null,0,0,0,0,0,0,0,0,1,0,0,1,0,1,1,0,0,null,1,1,0]
[null,"A138","Wir verwenden nur Verpackungsmaterial aus erneuerbaren Ressourcen. ",null,null,0,0,0,0,0,0,0,0,1,0,0,1,1,0,0,0,0,null,1,1,0]
[null,"A139","Wir verwenden nur recycelte Materialien als Verpackungsmaterial.",null,null,0,0,0,0,0,0,0,0,1,0,0,1,1,0,0,0,0,null,1,1,0]
[null,"A140","Die Verpackungen unserer Produkte sind vollständig recycelbar.",null,null,0,0,0,0,0,0,0,0,1,0,0,1,1,0,0,0,0,null,1,1,0]
[null,"A141","Die Struktur unseres Verpackungsmaterials erlaubt ein einfaches Recycling. ",null,null,0,0,0,0,0,0,0,0,1,0,0,1,1,0,0,0,0,null,1,1,0]
[null,"Überschrift2","Lieferanten / Logistik",null,null,0,0,0,0,0,1,1,1,1,0,0,1,1,1,1,0,0,null,1,1,0]
[null,"A142","Wir kommunizieren unseren Partnern und Zulieferern die Nachhaltigkeitsstandards, zu denen wir uns bekennen, klar. ",null,null,0,0,0,0,0,0,0,1,0,0,0,0,0,0,0,0,0,null,1,1,0]
[null,"A143","Wir achten darauf, dass auch unsere Zulieferer ökologische Anspruchskriterien haben und erfüllen.",null,null,0,0,0,0,0,0,0,1,0,0,0,1,0,0,0,0,0,null,1,1,0]
[null,"A144","Bei der Auswahl unserer Lieferanten berücksichtigen wir Nachhaltigkeitsstandards.",null,null,0,0,0,0,0,0,0,1,0,0,0,1,0,0,0,0,0,null,1,1,0]
[null,"A145","Über regelmäßige Lieferantenaudits prüfen wir die ökologische Leistung unserer Zulieferer. ",null,null,0,0,0,0,0,0,0,1,0,0,0,1,0,0,0,0,0,null,1,1,0]
[null,"A146","Wir realisieren eine ökoeffiziente Logistik. ","Schlagwort: ökoeffiziente Logistik",null,0,0,0,0,0,0,0,1,1,0,0,1,1,1,1,0,0,null,1,1,0]
[null,"A147","Der Transport unserer Produkte erfolgt emissionsfrei. ",null,null,0,0,0,0,0,0,0,0,0,0,0,1,1,1,1,0,0,null,1,1,0]
[null,"Überschrift2","Nutzungsphase / Produktinformation",null,null,0,0,0,0,0,1,1,1,1,0,0,1,1,1,1,0,0,null,1,1,0]
[null,"A148","Die Nutzung unserer Produkte schadet weder Mensch noch Umwelt. ",null,null,0,0,0,0,0,0,0,1,0,0,0,0,1,1,1,0,0,null,1,1,0]
[null,"A149","Unsere Produkte emittieren in der Nutzung keine Treibhausgase.",null,null,0,0,0,0,0,0,0,0,0,0,0,1,1,1,1,0,0,null,1,1,0]
[null,"A150","Unsere Produkte sind modular aufgebaut, Einzelteile sind gut austauschbar. ","siehe A32",null,0,0,0,0,0,0,0,0,0,0,0,1,0,0,0,0,0,null,1,1,0]
[null,"A151","Durch die gute Reparierbar- und Wartbarkeit unserer Produkte wird ihre Lebensdauer erhöht.",null,null,0,0,0,0,0,0,0,0,0,0,0,1,1,0,0,0,0,null,1,1,0]
[null,"A152","Reklamierte Produkte und nicht mehr reparierbare Altprodukte werden nicht entsorgt, sondern aufbereitet / repariert / weiterverkauft.",null,null,0,0,0,0,0,0,0,0,1,0,0,1,0,0,0,0,0,null,1,1,0]
[null,"A153","Unser Kundenservice ist darauf ausgelegt ein defektes Produkt wieder einsatzfähig zu machen, anstatt es direkt auszutauschen. ",null,null,0,0,0,0,0,0,0,0,0,0,0,1,0,0,0,0,0,null,1,1,0]
[null,"A154","Die Struktur unserer Produkte vereinfacht das Recycling.","Schwer trennbare Verbundstoffe oder die Vermischung / Verbindung unterschiedlicher Materialien werden vermieden, sodass sich eine leicht zu lösende und damit gut zu recycelnde Produktstruktur ergibt. ",null,0,0,0,0,0,0,0,0,1,0,0,1,0,0,0,0,0,null,1,1,0]
[null,"A155","Unsere Produktinformationen sind transparent für jeden zugänglich. ","Beispielsweise über die Unternehmens-Website oder beigefügte Anleitungen werden Informationen für die KonsumentInnen zugänglich. ",null,0,0,0,0,0,0,0,0,0,0,0,1,0,0,0,0,0,null,1,1,0]
[null,"A156","Unseren Produkten liegen Anleitungen zur Selbstreparatur bei. ",null,null,0,0,0,0,0,0,0,0,0,0,0,1,0,0,0,0,0,null,1,1,0]
[null,"A157","Wir übermitteln potenziellen KundInnen genaue Produktinformationen, sodass unsere Rücklaufquote niedrig ist. ",null,null,0,0,0,0,0,0,0,0,0,0,0,1,0,0,0,0,0,null,1,1,0]
[null,"A158","In unseren Produktinformationen geben wir unseren KundInnen Auskunft zu Nachhaltigkeitsaspekten und -labeln. ",null,null,0,0,0,0,0,0,0,0,0,0,0,1,0,0,0,0,0,null,1,1,0]
[null,"A159","Unsere Produkte können besonders lange in Gebrauch bleiben, da sie upgradefähig sind. ","Upgradefähig: Produktelemente können ausgetauscht oder aufgerüstet werden",null,0,0,0,0,0,0,0,0,1,0,0,1,0,0,0,0,0,null,1,1,0]
[null,"A160","Wir fördern Ansätze und Initiativen zur Wieder- oder Weiternutzung unserer Produkte. ",null,null,0,0,0,0,0,0,0,0,0,0,0,1,0,0,0,0,0,null,1,1,0]
[null,"A161","Wir fördern Ansätze und Initiativen zur Mehrfach- oder Gemeinsamnutzung unserer Produkte (z.B. Leasingmodelle). ",null,null,0,0,0,0,0,0,0,0,0,0,0,1,0,0,0,0,0,null,1,1,0]
[null,"A162","Wir fördern Ansätze und Initiativen zur Wiederverwendung und zum Recycling unserer Produkte durch Dritte. ","Z. B. Leasingmodelle, Sharing-Modelle",null,0,0,0,0,0,0,0,0,0,0,0,1,0,0,0,0,0,null,1,1,0]
[null,"A163","Über ein Rückgabesystem können NutzerInnen nicht mehr funktionsfähige Produkte an uns zurückführen. ","siehe A77",null,0,0,0,0,0,0,0,0,1,0,0,1,0,0,0,0,0,null,1,1,0]
[null,"A164","Es gibt eine gute und einfach zu nutzende Kreislaufinfrastruktur, die eine hohe Dichte an Sammelstellen für Altprodukte beinhaltet. ","siehe A77",null,0,0,0,0,0,0,0,0,1,0,0,1,0,0,0,0,0,null,1,1,0]
[null,"Überschrift1","Arbeit und Gesundheit",null,null,0,0,1,1,1,0,0,1,0,1,0,0,0,0,0,0,0,null,1,0,1]
[null,"Überschrift2","Allgemeine Aspekte",null,null,0,0,1,1,1,0,0,1,0,1,0,0,0,0,0,0,0,null,1,0,1]
[null,"B1","Arbeitsschutz und Sicherheit sind Teil unserer Unternehmenspolitik und Unternehmenskultur. ",null,null,0,0,1,0,0,0,0,1,0,0,0,0,0,0,0,0,0,null,1,0,1]
[null,"B2","Unser Arbeitsschutz- und Gesundheitsschutzmanagementsystem geht über gesetzliche Anforderungen hinaus.",null,null,0,0,1,0,0,0,0,1,0,0,0,0,0,0,0,0,0,null,1,0,1]
[null,"B3","Unser Arbeitsschutzmanagementsystem ist zertifiziert.","Z. B. über ISO 45001",null,0,0,0,0,0,0,0,1,0,0,0,0,0,0,0,0,0,null,1,0,1]
[null,"B4","Für alle Arbeitsplätze in unserem Unternehmen liegen Gefährdungsbeurteilungen vor. ",null,null,0,0,1,0,0,0,0,1,0,0,0,0,0,0,0,0,0,null,1,0,1]
[null,"B5","Wir aktualisieren unsere Gefährdungsbeurteilungen regelmäßig. ",null,null,0,0,1,0,0,0,0,1,0,0,0,0,0,0,0,0,0,null,1,0,1]
[null,"B6","Unsere Gefährdungsbeurteilungen enthalten Angaben zur Prävention von Gefährdungen.",null,null,0,0,1,0,0,0,0,1,0,0,0,0,0,0,0,0,0,null,1,0,1]
[null,"B7","Unsere Gefährdungsbeurteilungen enthalten Angaben darüber, was im Gefahrfall / Notfall zu tun ist. ",null,null,0,0,1,0,0,0,0,1,0,0,0,0,0,0,0,0,0,null,1,0,1]
[null,"B8","Die Gefährdungsbeurteilungen erfassen auch psychische Belastungen, denen die Mitarbeitenden ausgesetzt sind.",null,null,0,0,1,0,0,0,0,1,0,0,0,0,0,0,0,0,0,null,1,0,1]
[null,"B9","Wir führen regelmäßig Begehungen aller Arbeitsplätze im Unternehmen durch. ",null,null,0,0,0,0,0,0,0,1,0,0,0,0,0,0,0,0,0,null,1,0,1]
[null,"B10","Zu allen Arbeitsplätzen, Arbeitsmitteln und Arbeitsstoffen existieren Betriebs- bzw. Arbeitsanweisungen.",null,null,0,0,0,0,0,0,0,1,0,0,0,0,0,0,0,0,0,null,1,0,1]
[null,"B11","Betriebs- bzw. Arbeitsanweisungen werden regelmäßig aktualisiert. ",null,null,0,0,0,0,0,0,0,1,0,0,0,0,0,0,0,0,0,null,1,0,1]
[null,"B12","Die Gefährdungsbeurteilungen und Betriebsanweisungen werden in die Schulung unserer Mitarbeitenden eingebunden. ",null,null,0,0,0,1,0,0,0,1,0,0,0,0,0,0,0,0,0,null,1,0,1]
[null,"B13","Gefährdungsbeurteilungen und Betriebsanweisungen sind für alle Mitarbeitenden jederzeit zugänglich. ",null,null,0,0,0,1,0,0,0,1,0,1,0,0,0,0,0,0,0,null,1,0,1]
[null,"B14","Wir erfassen die krankheitsbedingte Abwesenheitsrate unserer Mitarbeitenden.",null,null,0,0,1,0,0,0,0,0,0,0,0,0,0,0,0,0,0,null,1,0,1]
[null,"B15","Die Mitwirkung aller Mitarbeitenden im Arbeits- und Gesundheitsschutz wird vorausgesetzt und gefördert. ",null,null,0,0,0,0,1,0,0,1,0,1,0,0,0,0,0,0,0,null,1,0,1]
[null,"B16","Belange des Arbeitsschutzes werden regelmäßig in Sitzungen der obersten Führungskräfte thematisiert.","Solche Sitzungen können beispielsweise die Zusammenkünfte des Arbeits- (und Umwelt)schutz- Ausschusses sein.",null,0,0,0,0,0,0,0,1,0,0,0,0,0,0,0,0,0,null,1,0,1]
[null,"B17","Belange des Arbeits- und Gesundheitsschutzes werden regelmäßig beispielsweise über Versammlungen oder Aushänge an alle Mitarbeitenden kommuniziert. ",null,null,0,0,0,1,0,0,0,1,0,1,0,0,0,0,0,0,0,null,1,0,1]
[null,"B18","Wir berechnen und kommunizieren definierte Leistungskennzahlen zum Thema Arbeits- und Gesundheitsschutz. ","Schlagwort: Kennzahlen im Arbeitsschutz\nZ. B. Anzahl meldepflichtiger Unfälle, Anzahl Erste-Hilfe-Leistungen",null,0,0,0,0,0,0,0,1,0,0,0,0,0,0,0,0,0,null,1,0,1]
[null,"B19","Alle Beauftragtenfunktionen sind mindestens im gesetzlich erforderlichen Ausmaß abgedeckt. ","Beauftragtenfunktionen: Sicherheitsbeauftragte, ErsthelferInnen, BrandschutzhelferInnen, Gefahrgut-beauftragte, Explosionsschutzbeauftragte etc.",null,0,0,0,0,0,0,0,1,0,0,0,0,0,0,0,0,0,null,1,0,1]
[null,"B20","Wir führen regelmäßig Übungen für den Notfall durch. ",null,null,0,0,0,0,0,0,0,1,0,0,0,0,0,0,0,0,0,null,1,0,1]
[null,"B21","Jede/r Mitarbeitende weiß, wie er / sie sich im Notfall zu verhalten hat. ","Die Mitarbeitenden kennen die für ihren Arbeitsplatz relevanten Fluchtwege und Sammelplätze für den Notfall. Es ist bekannt, wo sich Erste-Hilfe-Einrichtungen befinden etc.",null,0,0,1,1,0,0,0,1,0,0,0,0,0,0,0,0,0,null,1,0,1]
[null,"B22","An keinem unserer Unternehmensstandorte findet Kinderarbeit statt.",null,null,0,0,1,1,1,0,0,1,0,1,0,0,0,0,0,0,0,null,1,0,1]
[null,"Überschrift2","Schulungen und Angebote",null,null,0,0,1,1,1,0,0,1,0,1,0,0,0,0,0,0,0,null,1,0,1]
[null,"B23","Unsere Mitarbeitenden werden regelmäßig zu allgemeinen Aspekten des sicheren und gesunden Arbeitens geschult.  ",null,null,0,0,1,1,0,0,0,1,0,0,0,0,0,0,0,0,0,null,1,0,1]
[null,"B24","Unsere Mitarbeitenden werden regelmäßig bezüglich der Gefährdungen der Arbeitsplätze und Arbeitsmittel, mit denen sie in Kontakt kommen, geschult.",null,null,0,0,1,1,0,0,0,1,0,0,0,0,0,0,0,0,0,null,1,0,1]
[null,"B25","Alle Beauftragten werden regelmäßig bezüglich ihrer Aufgaben geschult und trainiert. ",null,null,0,0,0,1,0,0,0,1,0,0,0,0,0,0,0,0,0,null,1,0,1]
[null,"B26","Wir bieten unseren Mitarbeitenden regelmäßig Schulungen / Weiterbildungen zum Thema gesundes und sicheres Arbeiten an.",null,null,0,0,1,1,0,0,0,1,0,0,0,0,0,0,0,0,0,null,1,0,1]
[null,"B27","Wir führen regelmäßig Informationskampagnen, Programme und Initiativen zum Thema Arbeits- und Gesundheitsschutz durch.",null,null,0,0,1,1,0,0,0,1,0,0,0,0,0,0,0,0,0,null,1,0,1]
[null,"B28","Unseren Mitarbeitenden stehen verschiedene Angebote zur Gesundheitsförderung zur Verfügung. ","Z. B. Burnout-Prävention, Stressmanagement, Autogenes Training",null,0,0,1,0,0,0,0,1,0,0,0,0,0,0,0,0,0,null,1,0,1]
[null,"B29","Wir weisen unsere Mitarbeitenden auf Vorsorgeuntersuchungen hin.","Auch Hinweis auf Vorsorgeuntersuchungen, die nichts mit betrieblich bedingten Gefährdungen zu tun haben (z. B. Krebsvorsorge für Verwaltungsmitarbeitende)",null,0,0,1,0,0,0,0,1,0,0,0,0,0,0,0,0,0,null,1,0,1]
[null,"B30","Wir bieten unseren Mitarbeitenden Beratungen für einen gesunden Arbeitsplatz an.","Z. B. Ergonomieberatung",null,0,0,1,0,0,0,0,1,0,0,0,0,0,0,0,0,0,null,1,0,1]
[null,"B31","Wir haben Angebote zur Gesundheitsberatung für unserer Mitarbeiterschaft.","Z. B. Ernährungsberatung, allgemeine Gesundheitsberatung",null,0,0,1,0,0,0,0,1,0,0,0,0,0,0,0,0,0,null,1,0,1]
[null,"B32","Unseren Mitarbeitenden steht ein umfassendes Sportprogramm zur Verfügung. ",null,null,0,0,1,0,0,0,0,1,0,0,0,0,0,0,0,0,0,null,1,0,1]
[null,"B33","Wir stellen allen Mitarbeitenden Dienstfahrräder zur Verfügung.",null,null,0,0,0,0,0,0,0,1,0,0,0,0,0,0,0,0,0,null,1,0,1]
[null,"Überschrift2","Gefährdungen am Arbeitsplatz / durch Arbeitsmittel",null,null,0,0,1,1,1,0,0,1,0,1,0,0,0,0,0,0,0,null,1,0,1]
[null,"B34","Gefährdungen verhindern wir vorwiegend über konstruktive Schutzmaßnahmen oder Substitution.","Schutzmaßnahmen-Hierarchie nach Arbeitsschutzgesetz beachten: am besten Gefährdungen bereits in der Planung konstruktiv verhindern.",null,0,0,1,0,0,0,0,1,0,0,0,0,0,0,0,0,0,null,1,0,1]
[null,"B35","Wir führen organisatorische und technische Schutzmaßnahmen aus, um sichere Arbeitsplätze zu realisieren. ","Schlagwort: STOP-Prinzip",null,0,0,1,0,0,0,0,1,0,0,0,0,0,0,0,0,0,null,1,0,1]
[null,"B36","Erst wenn organisatorische und technische Schutzmaßnahmen ausgeschöpft und nicht ausreichend sind, sichern wir unsere Mitarbeiter über die Verwendung von persönlicher Schutzausrüstung. ","Schlagwort: STOP-Prinzip",null,0,0,1,0,0,0,0,1,0,0,0,0,0,0,0,0,0,null,1,0,1]
[null,"B37","In unserem Unternehmen gibt es keine Arbeitsplätze, an denen dauerhaft PSA getragen werden muss. ",null,null,0,0,1,0,0,0,0,1,0,0,0,0,0,0,0,0,0,null,1,0,1]
[null,"B38","In unserem Unternehmen gibt es keine Arbeitsmittel, bei deren Nutzung dauerhaft PSA getragen werden muss. ",null,null,0,0,1,0,0,0,0,1,0,0,0,0,0,0,0,0,0,null,1,0,1]
[null,"B39","In unserem Unternehmen werden keine Gefahrstoffe eingesetzt.","Schlagwort: Gefahrstoffe nach GHS",null,0,0,1,0,0,0,0,1,0,0,0,0,0,0,0,0,0,null,1,0,1]
[null,"B40","Bevor ein gefährliches Arbeitsmittel eingesetzt wird, werden Substitutionsmöglichkeiten geprüft.",null,null,0,0,0,0,0,0,0,1,0,0,0,0,0,0,0,0,0,null,1,0,1]
[null,"B41","Bevor ein Gefahrstoff eingesetzt wird, werden Substitutionsmöglichkeiten geprüft. ",null,null,0,0,0,0,0,0,0,1,0,0,0,0,0,0,0,0,0,null,1,0,1]
[null,"B42","In keinem unserer Produktionsprozesse werden für den Menschen gefährliche gasförmige Emissionen frei.","Z. B. Stickstoffoxide",null,0,0,1,0,0,0,0,1,0,0,0,0,0,0,0,0,0,null,1,0,1]
[null,"B43","In keinem unserer Produktionsprozesse werden für den Menschen gefährliche flüssige Emissionen frei.","Z. B. hautschädliche Säuren oder Basen",null,0,0,1,0,0,0,0,1,0,0,0,0,0,0,0,0,0,null,1,0,1]
[null,"B44","In keinem unserer Produktionsprozesse werden für den Menschen gefährliche feste Emissionen frei.  ","Z. B. lungengängie Stäube / Fasern",null,0,0,1,0,0,0,0,1,0,0,0,0,0,0,0,0,0,null,1,0,1]
[null,"B45","Unsere Mitarbeitenden sind keinen mechanischen / physischen Gefährdungen ausgesetzt.",null,null,0,0,1,0,0,0,0,1,0,0,0,0,0,0,0,0,0,null,1,0,1]
[null,"B46","Unsere Mitarbeitenden sind (objektiv betrachtet) keinen psychischen Belastungen ausgesetzt.","Gleichzeitig ist zu beachten, dass die Wahrnehmung psychischer Belastungen immer individuell ist.",null,0,0,1,0,0,0,0,1,0,0,0,0,0,0,0,0,0,null,1,0,1]
[null,"B47","Unsere Mitarbeitenden sind keinen chemischen oder biologischen Gefährdungen ausgesetzt. ",null,null,0,0,1,0,0,0,0,1,0,0,0,0,0,0,0,0,0,null,1,0,1]
[null,"B48","Bei uns gibt es keine Alleinarbeitsplätze für Mitarbeitende, die gefährliche / physisch fordernde Tätigkeiten ausüben müssen. ","Auf solchen Arbeitsplätzen sind die Mitarbeitenden zu jeder Zeit bspw. über Personenmeldesysteme mit anderen Mitarbeitenden verbunden, sodass bei Gefährdungen schnell eingegriffen werden kann.",null,0,0,1,0,0,0,0,1,0,0,0,0,0,0,0,0,0,null,1,0,1]
[null,"B49","Wir stellen jedem Mitarbeitendem einen ergonomischen Arbeitsplatz zur Verfügung. ",null,null,0,0,1,0,0,0,0,1,0,1,0,0,0,0,0,0,0,null,1,0,1]
[null,"B50","Wir unterstützen unsere Mitarbeitenden dabei auch ihren Homeoffice-Arbeitsplatz ergonomisch einzurichten ","Auf Wunsch auch Ergonomieberatun zu Hause, bzw. ausführliche Anleitungen zur Einrichtung eines ergonomischen Homeofficearbeitsplatzes",null,0,0,1,0,0,0,0,1,0,0,0,0,0,0,0,0,0,null,1,0,1]
[null,"B51","Alle Arbeitsplätze sind rauchfreie Zonen.",null,null,0,0,1,0,0,0,0,1,0,0,0,0,0,0,0,0,0,null,1,0,1]
[null,"B52","Unser gesamtes Betriebsgelände (an allen Standorten) ist eine rauchfreie Zone.",null,null,0,0,1,0,0,0,0,1,0,0,0,0,0,0,0,0,0,null,1,0,1]
[null,"Überschrift2","Arbeitsunfälle",null,null,0,0,1,1,1,0,0,1,0,1,0,0,0,0,0,0,0,null,1,0,1]
[null,"B53","Im letzten Jahr hatten wir keine Arbeitsunfälle, die zu Ausfalltagen führten. ",null,null,0,0,1,0,0,0,0,1,0,0,0,0,0,0,0,0,0,null,1,0,1]
[null,"B54","Im letzten Jahr hatten wir keine Arbeitsunfälle mit tödlichem Ausgang.",null,null,0,0,1,0,0,0,0,1,0,0,0,0,0,0,0,0,0,null,1,0,1]
[null,"B55","Im letzten Jahr konnten alle Verunfallten durch unsere betriebsinternen ErsthelferInnen behandelt werden. ",null,null,0,0,1,0,0,0,0,1,0,0,0,0,0,0,0,0,0,null,1,0,1]
[null,"B56","Wir erfassen, dokumentieren und kommunizieren Arbeitsunfälle.",null,null,0,0,0,1,0,0,0,1,0,0,0,0,0,0,0,0,0,null,1,0,1]
[null,"B57","Wir unterschieden verschiedene Kategorien an Arbeitsunfällen.","Es wird bspw. Zwischen meldepflichten und nicht meldepflichtigen Unfällen unterschieden.",null,0,0,0,0,0,0,0,1,0,0,0,0,0,0,0,0,0,null,1,0,1]
[null,"B58","Geschieht ein Arbeitsunfall, wird ein definierter Prozess zur Aufarbeitung des Vorfalls angestoßen.","Schlagwort: Plan-Do-Check-Act-Zyklus",null,0,0,0,0,0,0,0,1,0,0,0,0,0,0,0,0,0,null,1,0,1]
[null,"B59","Geschieht ein Arbeitsunfall werden Maßnahmen zur Vermeidung ähnlicher Unfälle in Zukunft getroffen. ",null,null,0,0,1,0,0,0,0,1,0,0,0,0,0,0,0,0,0,null,1,0,1]
[null,"B60","Geschieht ein Arbeitsunfall, werden die Verletzungsart und die Schwere des Unfalls dokumentiert.",null,null,0,0,0,0,0,0,0,1,0,0,0,0,0,0,0,0,0,null,1,0,1]
[null,"B61","Geschieht ein Arbeitsunfall, wird die Unfallursache ermittelt. ",null,null,0,0,1,0,0,0,0,1,0,0,0,0,0,0,0,0,0,null,1,0,1]
[null,"B62","Wir unterstützen verunfallte Mitarbeitende auf ihrem vollständigen Genesungsweg.",null,null,0,0,1,0,0,0,0,1,0,0,0,0,0,0,0,0,0,null,1,0,1]
[null,"B63","Wir dokumentieren und kommunizieren Beinaheunfälle und unsichere Zustände.",null,null,0,0,0,1,0,0,0,1,0,0,0,0,0,0,0,0,0,null,1,0,1]
[null,"B64","Wir haben ein Meldesystem etabliert, über das auch unsichere Zustände und Beinaheunfälle erfasst werden. ","In Abteilungszielen o. Ä. wird festgelegt wie viele unsichere Zuständ oder Beinaheunfälle die Mitarbeitenden beispielsweise in einem festgelegten Zeithorizont melden sollten (Erfassung z. B. über das Intranet).",null,0,0,0,0,0,0,0,1,0,0,0,0,0,0,0,0,0,null,1,0,1]
[null,"B65","Unsere Mitarbeitenden sind darüber informiert, dass es ein Meldesystem zur Erfassung von unsicheren Zuständen und Beinaheunfällen gibt. ",null,null,0,0,0,1,0,0,0,1,0,0,0,0,0,0,0,0,0,null,1,0,1]
[null,"B66","Wir berechnen und kommunizieren definierte Leistungskennzahlen bezüglich unserer Arbeits- und Beinaheunfälle. ","Siehe B18",null,0,0,0,1,0,0,0,1,0,0,0,0,0,0,0,0,0,null,1,0,1]
[null,"Überschrift2","Berufsbedingte Erkrankungen und Wiedereingliederung",null,null,0,0,1,1,1,0,0,1,0,1,0,0,0,0,0,0,0,null,1,0,1]
[null,"B67","Wir klären in Zusammenarbeit mit dem arbeitsmedizinischen Dienst unsere Mitarbeitenden über berufsbedingte Erkrankungen auf.",null,null,0,0,1,0,0,0,0,1,0,0,0,0,0,0,0,0,0,null,1,0,1]
[null,"B68","Wir stellen sicher, dass jeder Mitarbeitende über die arbeitsmedizinischen Pflichtuntersuchungen informiert ist. ","Schlagwort: Arbeitsmedizinische Pflichtuntesuchungen",null,0,0,1,0,0,0,0,1,0,0,0,0,0,0,0,0,0,null,1,0,1]
[null,"B69","Wir stellen sicher, dass jeder Mitarbeitende über die arbeitsmedizinischen Angebotsuntersuchungen informiert ist.","Schlagwort: Arbeitsmedizinische Angebots-untersuchungen",null,0,0,1,0,0,0,0,1,0,0,0,0,0,0,0,0,0,null,1,0,1]
[null,"B70","Wir stellen sicher, dass jeder Mitarbeitende über arbeitsmedizinische Wunschuntersuchungen informiert ist.","Schlagwort: Arbeitsmedizinische Wunsch-untersuchungen",null,0,0,1,0,0,0,0,1,0,0,0,0,0,0,0,0,0,null,1,0,1]
[null,"B71","Wir stellen sicher, dass jeder Mitarbeitende seine arbeitsmedizinischen Pflichtuntersuchungen regelmäßig wahrnimmt. ",null,null,0,0,1,0,0,0,0,1,0,0,0,0,0,0,0,0,0,null,1,0,1]
[null,"B72","Wir ermutigen unsere Mitarbeitenden dazu arbeitsmedizinische Angebotsuntersuchungen regelmäßig wahrzunehmen.",null,null,0,0,1,0,0,0,0,1,0,0,0,0,0,0,0,0,0,null,1,0,1]
[null,"B73","Wir stellen sicher, dass jeder Mitarbeitende seine arbeitsmedizinischen Pflichtuntersuchungen regelmäßig wahrnimmt. ",null,null,0,0,1,0,0,0,0,1,0,0,0,0,0,0,0,0,0,null,1,0,1]
[null,"B74","Im letzten Jahr traten bei aktuellen oder ehemaligen Mitarbeitenden keine Berufskrankheiten auf, die auf die Arbeit in unserem Unternehmen rückführbar sind. ",null,null,0,0,1,0,0,0,0,1,0,0,0,0,0,0,0,0,0,null,1,0,1]
[null,"B75","Wir erfassen und dokumentieren die Rate der Berufskrankheiten.",null,null,0,0,1,0,0,0,0,1,0,0,0,0,0,0,0,0,0,null,1,0,1]
[null,"B76","Für Mitarbeitende, die nach längerer Abwesenheit ins Unternehmen zurückkehren, haben wir ein Betriebliches Eingliederungsmanagement (BEM) etabliert. ","Schlagwort: Betriebliches Eingliederungsmanagement",null,0,0,0,0,0,0,0,1,0,1,0,0,0,0,0,0,0,null,1,0,1]
[null,"B77","Für Mitarbeitende, die nach längerer Abwesenheit ins Unternehmen zurückkehren, gibt es einen festen Ansprechpartner /eine Ansprechpartnerin / eine Anlaufstelle für Probleme.",null,null,0,0,0,0,0,0,0,1,0,1,0,0,0,0,0,0,0,null,1,0,1]
[null,"B78","Wir gehen proaktiv auf Mitarbeitende zu, die nach längerer Abwesenheit ins Unternehmen zurückkehren, um ihnen bei der Reintegration beizustehen.",null,null,0,0,0,0,0,0,0,1,0,1,0,0,0,0,0,0,0,null,1,0,1]
[null,"Überschrift2","Grundlegende Bedürfnisse ",null,null,0,0,1,1,1,0,0,1,0,1,0,0,0,0,0,0,0,null,1,0,1]
[null,"B79","Alle Mitarbeitenden haben während der Arbeit Zugang zu sauberem Trinkwasser. ",null,null,0,0,1,0,1,0,0,1,0,1,0,0,0,0,0,0,0,null,1,0,1]
[null,"B80","Alle Mitarbeitenden haben Zugang zu Wasserspendern.",null,null,0,0,1,0,1,0,0,1,0,1,0,0,0,0,0,0,0,null,1,0,1]
[null,"B81","Alle Mitarbeitenden haben bei der Arbeit kostengünstig Zugang zu Nahrungsmitteln. ",null,null,0,0,1,0,1,0,0,1,0,1,0,0,0,0,0,0,0,null,1,0,1]
[null,"B82","Alle Mitarbeitenden haben während der Arbeit Zugang zu hygienischen Sanitäranlagen.",null,null,0,0,1,0,1,0,0,1,0,1,0,0,0,0,0,0,0,null,1,0,1]
[null,"B83","Wir schulen unsere Mitarbeitenden regelmäßig im Bereich Hygiene.",null,null,0,0,1,1,0,0,0,1,0,0,0,0,0,0,0,0,0,null,1,0,1]
[null,"B84","Wir bieten Schulungen zum Thema gesunde Ernährung und Lebensweise an. ",null,null,0,0,1,1,0,0,0,0,0,0,0,0,0,0,0,0,0,null,1,0,1]
[null,"B85","Wir führen regelmäßig Informationskampagnen zu den Themen gesunde Ernährung und Lebensweise an.",null,null,0,0,1,0,0,0,0,0,0,0,0,0,0,0,0,0,0,null,1,0,1]
[null,"Überschrift2","Arbeitszeit(modelle)",null,null,0,0,1,1,1,0,0,1,0,1,0,0,0,0,0,0,0,null,1,0,1]
[null,"B86","Wir bieten unseren Mitarbeitenden flexible Arbeitszeitmodelle an. ","Z. B. Gleitzeit, Flexzeit",null,0,0,0,0,0,0,0,1,0,0,0,0,0,0,0,0,0,null,1,0,1]
[null,"B87","Bei uns muss kein Mitarbeitender Schichtarbeit leisten. ",null,null,0,0,1,0,0,0,0,1,0,0,0,0,0,0,0,0,0,null,1,0,1]
[null,"B88","Falls Schichtarbeit erforderlich ist, wird diese bei uns unter Kriterien des Gesundheitsschutzes geplant. ","siehe Bundesanstalt für Arbeitsschutz und Arbeits-medizin: Gestaltung von Nacht- und Schichtarbeit",null,0,0,1,0,0,0,0,1,0,0,0,0,0,0,0,0,0,null,1,0,1]
[null,"B89","Die Überstunden unserer Mitarbeitenden werden erfasst und vergütet bzw. können abgebaut werden. ",null,null,0,0,0,0,1,0,0,1,0,1,0,0,0,0,0,0,0,null,1,0,1]
[null,"B90","Alle Mitarbeitenden mit sehr vielen Überstunden werden kontaktiert und ein Plan zur Reduzierung wird mit ihnen erarbeitet. ",null,null,0,0,1,0,0,0,0,1,0,0,0,0,0,0,0,0,0,null,1,0,1]
[null,"B91","Wir setzen nicht voraus, dass unsere Mitarbeitenden auch außerhalb ihrer Arbeitszeiten erreichbar sind. ",null,null,0,0,0,0,0,0,0,1,0,0,0,0,0,0,0,0,0,null,1,0,1]
[null,"Überschrift2","Work Life Balance",null,null,0,0,1,1,1,0,0,1,0,1,0,0,0,0,0,0,0,null,1,0,1]
[null,"B92","Wir ermöglichen unseren Mitarbeitenden Auszeiten. ","Z. B. Sabbatical, Auszeit für die Pflege, Auszeit für Weiterbildung",null,0,0,1,0,0,0,0,1,0,0,0,0,0,0,0,0,0,null,1,0,1]
[null,"B93","Unseren Mitarbeitenden stehen Räume zur Erholung zur Verfügung. ",null,null,0,0,1,0,0,0,0,1,0,0,0,0,0,0,0,0,0,null,1,0,1]
[null,"B94","Es ist üblich, dass unsere Mitarbeitenden ihren Anspruch auf Elternzeit etc. in vollem Umfang wahrnehmen. ",null,null,0,0,0,0,1,0,0,0,0,1,0,0,0,0,0,0,0,null,1,0,1]
[null,"B95","Es ist üblich, dass unsere Mitarbeitenden nach der Elternzeit etc. ins Unternehmen zurückkehren. ",null,null,0,0,0,0,1,0,0,0,0,1,0,0,0,0,0,0,0,null,1,0,1]
[null,"B96","Es ist üblich, dass unsere Mitarbeitenden nach der Elternzeit etc. auf den gleichen Arbeitsplatz zurückkehren. ",null,null,0,0,0,0,1,0,0,0,0,1,0,0,0,0,0,0,0,null,1,0,1]
[null,"B97","Wir bieten Programme / Angebote an, die unseren Mitarbeitenden den Einstieg nach der Elternzeit etc. vereinfachen.",null,null,0,0,0,0,1,0,0,1,0,1,0,0,0,0,0,0,0,null,1,0,1]
[null,"B98","Unser Unternehmen besitzt einen Betriebskindergarten / hilft beim Finden eines KiTa-Platzes.",null,null,0,0,0,0,1,0,0,1,0,1,0,0,0,0,0,0,0,null,1,0,1]
[null,"B99","Es ist möglich ein Haustier mit ins Büro zu bringen. ",null,null,0,0,0,0,0,0,0,1,0,0,0,0,0,0,0,0,0,null,1,0,1]
[null,"B100","Wir bieten unseren Mitarbeitenden vertragliche bzw. arbeitszeittechnische Flexibilitäten und Unterstützungsangebote, für den Fall, dass sie die Pflege eines Angehörigen übernehmen müssen.",null,null,0,0,0,0,1,0,0,1,0,1,0,0,0,0,0,0,0,null,1,0,1]
[null,"B101","Unsere Mitarbeitenden können vollständig im Homeoffice arbeiten. ",null,null,0,0,0,0,1,0,0,1,0,1,0,0,0,0,0,0,0,null,1,0,1]
[null,"B102","In Ausnahmefällen können die Homeoffice-Zeiten unserer Mitarbeitenden ausgeweitet werden. ",null,null,0,0,0,0,1,0,0,1,0,1,0,0,0,0,0,0,0,null,1,0,1]
[null,"Überschrift2","Mitarbeitermitbestimmung / -mitwirkung",null,null,0,0,1,1,1,0,0,1,0,1,0,0,0,0,0,0,0,null,1,0,1]
[null,"B103","Unser Unternehmen hat einen Betriebsrat / eine Arbeitnehmervertretung.",null,null,0,0,0,0,1,0,0,0,0,1,0,0,0,0,0,0,0,null,1,0,1]
[null,"B104","Wir bieten allen Mitarbeitenden verschiedene Möglichkeiten zur Mitwirkung.","Z. B. Engagement in MitarbeiterInnenvertretungen, Planung von Betriebsfesten, Teamevents etc.",null,0,0,0,0,1,0,0,0,0,1,0,0,0,0,0,0,0,null,1,0,1]
[null,"B105","Wir bieten allen Mitarbeitenden verschiedene Möglichkeiten zur Mitbestimmung.","Z. B. Betriebsratswahlen",null,0,0,0,0,1,0,0,1,0,1,0,0,0,0,0,0,0,null,1,0,1]
[null,"B106","Unsere Mitarbeitenden können Verbesserungsvorschläge zu allen Unternehmensbereichen einreichen. ",null,null,0,0,0,1,1,0,0,0,0,1,0,0,0,0,0,0,0,null,1,0,1]
[null,"B107","Das Ideenmanagement und Vorschlagswesen ist in den persönlichen Zielen unserer Mitarbeitenden und in den Abteilungszielen verankert",null,null,0,0,0,1,1,0,0,0,0,1,0,0,0,0,0,0,0,null,1,0,1]
[null,"B108","Wir haben ein Ideenmanagement und Vorschlagswesen speziell für den Bereich nachhaltige Entwicklung",null,null,0,0,null,1,1,0,0,0,0,1,0,0,0,0,0,0,0,null,1,0,1]
[null,"B109","Mitarbeitende werden für eingereichte Verbesserungsvorschläge honoriert. ","Z. B. mit Geldprämien oder Abteilungsevents",null,0,0,0,0,1,0,0,0,0,1,0,0,0,0,0,0,0,null,1,0,1]
[null,"B110","Mitarbeitende werden für eingereichte Verbesserungsvorschläge, die in die Praxis umgesetzt werden, honoriert. ",null,null,0,0,0,0,1,0,0,0,0,1,0,0,0,0,0,0,0,null,1,0,1]
[null,"B111","Besonderes Engagement im Gesundheits- und Arbeitsschutz wird honoriert. ","Z. B. über Preisverleihungen, Urkunden etc.",null,0,0,1,0,1,0,0,1,0,1,0,0,0,0,0,0,0,null,1,0,1]
[null,"Überschrift2","Mitarbeiterabsicherung / Transition Management ",null,null,0,0,1,1,1,0,0,1,0,1,0,0,0,0,0,0,0,null,1,0,1]
[null,"B112","Wir beteiligen unsere Mitarbeitenden am unternehmerischen Erfolg.","Z. B. über Aktien oder Bonuszahlungen",null,0,0,0,0,1,0,0,1,0,1,0,0,0,0,0,0,0,null,1,0,1]
[null,"B113","Wir haben eine unternehmensweit gültige Leitlinie zu alterns- und altersgerechtem Arbeiten verabschiedet.",null,null,0,0,1,0,0,0,0,1,0,1,0,0,0,0,0,0,0,null,1,0,1]
[null,"B114","Unsere Arbeitsplätze werden altersgerecht und alternsgerecht angepasst. ","Bspw. Über die Installation höhenverstellbarer Schreibtische oder die Bereitstellung von Sehhilfen / Hebehilfen etc. ",null,0,0,1,0,0,0,0,1,0,1,0,0,0,0,0,0,0,null,1,0,1]
[null,"B115","Arbeitsaufgaben werden altersgerecht und alternsgerecht angepasst. ","Physische Defizite und erfahrungsbedingte Vorteile werden in die Planung der Arbeitsaufgaben eingebunden",null,0,0,1,0,0,0,0,1,0,1,0,0,0,0,0,0,0,null,1,0,1]
[null,"B116","Wir realisieren Programme zum Erfahrungsaustausch zwischen jung und alt. ",null,null,0,0,1,1,0,0,0,1,0,1,0,0,0,0,0,0,0,null,1,0,1]
[null,"B117","Ältere Mitarbeitende können über Programme ihre Erfahrungen in die Verbesserung / Entwicklung von Prozessen einbinden. ","Testinfo",null,0,0,0,1,0,0,0,1,0,1,0,0,0,0,0,0,0,null,1,0,1]
[null,"B118","Wir sichern unsere Mitarbeitenden auch für ihren Lebensabend ab.","Z. B. über eine Betriebsrente oder Sozialleistungen",null,0,0,1,0,0,0,0,1,0,1,0,0,0,0,0,0,0,null,1,0,1]
[null,"B119","Wir unterstützen unsere Mitarbeitenden in Rekonvaleszenzzeiten. ",null,null,0,0,1,0,0,0,0,1,0,0,0,0,0,0,0,0,0,null,1,0,1]
[null,"B120","Wir unterstützen unsere Mitarbeitenden beim Übergang in die Rente.",null,null,0,0,1,0,0,0,0,1,0,1,0,0,0,0,0,0,0,null,1,0,1]
[null,"Überschrift2","Chancengleichheit und Gleichberechtigung",null,null,0,0,1,1,1,0,0,1,0,1,0,0,0,0,0,0,0,null,1,0,1]
[null,"B121","Chancengleichheit und Gleichberechtigung werden in unserer Unternehmenspolitik festgeschrieben. ",null,null,0,0,0,0,1,0,0,1,0,1,0,0,0,0,0,0,0,null,1,0,1]
[null,"B122","Unsere Mitarbeiterschaft ist ethnisch divers aufgestellt.",null,null,0,0,0,0,0,0,0,0,0,1,0,0,0,0,0,0,0,null,1,0,1]
[null,"B123","Unsere Mitarbeiterschaft vereint verschiedene Altersgruppen miteinander.",null,null,0,0,0,0,0,0,0,0,0,1,0,0,0,0,0,0,0,null,1,0,1]
[null,"B124","In unserer Mitarbeiterschaft herrscht ein ausgewogenes Verhältnis zwischen den Geschlechtern.","Kein Geschlecht ist beispielsweise aufgrund des Arbeitsinhalts signifikant über- oder unterrepräsentiert.",null,0,0,0,0,1,0,0,0,0,1,0,0,0,0,0,0,0,null,1,0,1]
[null,"B125","Unsere Personalauswahl findet zu jeder Zeit unabhängig von Ethnie, Geschlecht, Handicap oder Alter des Bewerbenden statt.",null,null,0,0,0,0,1,0,0,0,0,1,0,0,0,0,0,0,0,null,1,0,1]
[null,"B126","Wir sind ein inklusives Unternehmen und stellen auch Mitarbeitende mit Handicap ein. ",null,null,0,0,0,0,0,0,0,1,0,1,0,0,0,0,0,0,0,null,1,0,1]
[null,"B127","All unsere Unternehmensstandorte sind barrierefrei. ",null,null,0,0,1,0,0,0,0,1,0,1,0,0,0,0,0,0,0,null,1,0,1]
[null,"B128","Wir garantieren auch Mitarbeitenden mit Behinderung einen möglichst normalen Arbeitsalltag, indem wir alle für sie erforderlichen Erleichterungen umsetzen.","Z. B. Sprachassistenzsysteme an Bildschirmarbeitsplätzen oder barrierefreie Räumlichkeiten",null,0,0,1,0,0,0,0,1,0,1,0,0,0,0,0,0,0,null,1,0,1]
[null,"B129","Führungspositionen sowie die Aufsichtsorgane unseres Unternehmens sind divers besetzt.",null,null,0,0,0,0,1,0,0,0,0,1,0,0,0,0,0,0,0,null,1,0,1]
[null,"B130","Bei der Besetzung einer Führungsposition oder eines Sitzes in einem Aufsichtsorgan herrscht für alle qualifizierten Mitarbeitenden Chancengleichheit.",null,null,0,0,0,0,1,0,0,1,0,1,0,0,0,0,0,0,0,null,1,0,1]
[null,"B131","Die Höhe von Gehältern ist in unserem Unternehmen vollständig von Ethnie, Geschlecht, Handicap oder Alter unabhängig.",null,null,0,0,0,0,1,0,0,1,0,1,0,0,0,0,0,0,0,null,1,0,1]
[null,"B132","Frauen und Männer erhalten in gleichen Positionen das gleiche Gehalt. ",null,null,0,0,0,0,1,0,0,1,0,1,0,0,0,0,0,0,0,null,1,0,1]
[null,"B133","Wir zahlen allen unseren Mitarbeitenden weltweit den landesüblichen Mindestlohn bzw. einen Lohn, der mindestens die grundlegenden Lebensbedürfnisse vollständig abdeckt. ",null,null,0,0,0,0,1,0,0,1,0,1,0,0,0,0,0,0,0,null,1,0,1]
[null,"B134","Die Vergabe von Beförderungen findet unabhängig von Ethnie, Geschlecht, Handicap oder Alter des Mitarbeitenden statt. ",null,null,0,0,0,0,1,0,0,1,0,1,0,0,0,0,0,0,0,null,1,0,1]
[null,"Überschrift2","Mitarbeiterentwicklung und -akquisition",null,null,0,0,1,1,1,0,0,1,0,1,0,0,0,0,0,0,0,null,1,0,1]
[null,"B135","Wir führen mit den Mitarbeitenden regelmäßig ein Performance- und Karriereentwicklungsgespräch.","Mindestens jährliche Durchführung des Gesprächs",null,0,0,0,0,0,0,0,1,0,1,0,0,0,0,0,0,0,null,1,0,1]
[null,"B136","Den Mitarbeitenden werden Weiterbildungsmöglichkeiten proaktiv aufgezeigt.",null,null,0,0,0,1,1,0,0,0,0,1,0,0,0,0,0,0,0,null,1,0,1]
[null,"B137","Die Teilnahme an Schulungs- und Fortbildungsmaßnahmen, die die persönliche und berufliche Entwicklung unserer Mitarbeitenden fördert, wird jederzeit ermöglicht.",null,null,0,0,0,1,1,0,0,1,0,1,0,0,0,0,0,0,0,null,1,0,1]
[null,"B138","Unsere Mitarbeitenden nehmen regelmäßig an Trainings, Fortbildungsmaßnahmen etc. teil. ",null,null,0,0,0,1,1,0,0,1,0,1,0,0,0,0,0,0,0,null,1,0,1]
[null,"B139","Unsere Mitarbeitenden verbleiben lange in unserem Unternehmen. ","Betrachtung der zeitlichen Entwicklung der Fluktuationsrate des Unternehmens.",null,0,0,0,0,0,0,0,1,0,0,0,0,0,0,0,0,0,null,1,0,1]
[null,"B140","Wir bieten all unseren Auszubildenden / dualen Studierenden eine Übernahmegarantie.",null,null,0,0,0,1,0,0,0,1,0,1,0,0,0,0,0,0,0,null,1,0,1]
[null,"B141","Wir beschäftigen all unsere Beschäftigten unbefristet.",null,null,0,0,0,0,1,0,0,1,0,1,0,0,0,0,0,0,0,null,1,0,1]
[null,"B142","Wir bemühen uns befristet Beschäftigten auf lange Sicht eine unbefristete Anstellung anzubieten. ",null,null,0,0,0,0,1,0,0,1,0,1,0,0,0,0,0,0,0,null,1,0,1]
[null,"Überschrift2","Diskriminierung, Belästigung und Gewalt am Arbeitsplatz",null,null,0,0,1,1,1,0,0,1,0,1,0,0,0,0,0,0,0,null,1,0,1]
[null,"B143","Wir haben eine festgelegte, unternehmensweit gültige Sozialpolitik für ein gutes Miteinander.",null,null,0,0,0,0,1,0,0,1,0,1,0,0,0,0,0,0,0,null,1,0,1]
[null,"B144","In unserem Unternehmen sind im letzten Jahr keine Fälle von Diskriminierung gemeldet worden.",null,null,0,0,0,0,1,0,0,1,0,1,0,0,0,0,0,0,0,null,1,0,1]
[null,"B145","In unserem Unternehmen sind im letzten Jahr keine Fälle von Belästigung oder Gewalt am Arbeitsplatz gemeldet worden. ",null,null,0,0,1,0,1,0,0,1,0,1,0,0,0,0,0,0,0,null,1,0,1]
[null,"B146","Gegen Diskriminierung am Arbeitsplatz verfolgen wir eine Nulltoleranzpolitik.",null,null,0,0,1,0,1,0,0,1,0,1,0,0,0,0,0,0,0,null,1,0,1]
[null,"B147","Es existieren Prozesse, über die soziale Risiken identifiziert und bewertet werden. ",null,null,0,0,1,0,1,0,0,1,0,1,0,0,0,0,0,0,0,null,1,0,1]
[null,"B148","Es besteht ein definiertes und in der MitarbeiterInnenschaft kommuniziertes Meldesystem für Fälle von Diskriminierung, Gewalt etc.  am Arbeitsplatz.","Z. B. eine anonyme Ethik-Hotline",null,0,0,0,0,1,0,0,1,0,1,0,0,0,0,0,0,0,null,1,0,1]
[null,"B149","Es besteht eine feste Anlaufstelle für den Fall von Diskriminierung, Belästigung etc.",null,null,0,0,0,0,1,0,0,1,0,1,0,0,0,0,0,0,0,null,1,0,1]
[null,"B150","Unsere Mitarbeitenden sind über die Anlaufstelle sowie das Meldesystem für den Fall von Gewalt, Belästigung etc. informiert. ",null,null,0,0,0,1,1,0,0,1,0,1,0,0,0,0,0,0,0,null,1,0,1]
[null,"B151","Aufgetretene Fälle von Diskriminierung konnten über Mediationsaktivitäten gelöst werden. ",null,null,0,0,1,0,1,0,0,1,0,1,0,0,0,0,0,0,0,null,1,0,1]
[null,"B152","Wir schulen unsere Mitarbeiterschaft regelmäßig zu unserer Sozialpolitik und im Bereich der Sozialkompetenz. ",null,null,0,0,0,1,1,0,0,1,0,1,0,0,0,0,0,0,0,null,1,0,1]
[null,"Überschrift2","Zulieferer",null,null,0,0,1,1,1,0,0,1,0,1,0,0,0,0,0,0,0,null,1,0,1]
[null,"B153","Wir kommunizieren unseren Partnern / Partnerinnen und Zulieferern / Zulieferinnen die SDGs zu denen wir uns bekennen. ",null,null,0,0,0,0,0,0,0,1,0,0,0,0,0,0,0,0,0,null,1,0,1]
[null,"B154","Wir achten darauf, dass auch unsere Zulieferer / Zulieferinnen soziale Anspruchskriterien haben und erfüllen.",null,null,0,0,0,0,1,0,0,1,0,1,0,0,0,0,0,0,0,null,1,0,1]
[null,"B155","Bei der Auswahl unserer Lieferanten / Lieferantinnen berücksichtigen wir Nachhaltigkeitsstandards.",null,null,0,0,1,0,0,0,0,1,0,0,0,0,0,0,0,0,0,null,1,0,1]
[null,"B156","Über regelmäßige Audits prüfen wir den Arbeitsschutz sowie weitere soziale Aspekte bei unseren Zulieferern / Zulieferinnen. ",null,null,0,0,1,0,1,0,0,1,0,1,0,0,0,0,0,0,0,null,1,0,1]
[null,"B157","Bei der Auswahl von Zulieferern / Zulieferinnen achten wir darauf, dass in den Unternehmen keine Kinderarbeit stattfindet. ",null,null,0,0,1,0,0,0,0,1,0,1,0,0,0,0,0,0,0,null,1,0,1]
[null,"B158","Wir achten darauf, dass unsere Zulieferer / Zulieferinnen ihren Mitarbeitenden mindestens den landesüblichen Mindestlohn zahlen. ",null,null,0,0,0,0,1,0,0,1,0,1,0,0,0,0,0,0,0,null,1,0,1]
[null,"Überschrift2","Sicherheit und Gesundheit unserer Konsumenten und Konsumentinnen",null,null,0,0,1,1,1,0,0,1,0,1,0,0,0,0,0,0,0,null,1,0,1]
[null,"B159","In unseren Betriebsanleitungen sind Informationen über die sichere Anwendung unserer Produkte enthalten.",null,null,0,0,1,0,0,0,0,0,0,0,0,0,0,0,0,0,0,null,1,0,1]
[null,"B160","Unsere Produkte enthalten keine gesundheitsgefährdenden Inhaltsstoffe.",null,null,0,0,1,0,0,0,0,0,0,0,0,0,0,0,0,0,0,null,1,0,1]
[null,"B161","Wir übertreffen alle gesetzlichen Anforderungen an die Beschaffenheit unserer Produkte. ",null,null,0,0,1,0,0,0,0,0,0,0,0,0,0,0,0,0,0,null,1,0,1]
[null,"B162","Über Nachhaltigkeitslabels informieren wir über die Sicherheit unserer Produkte. ",null,null,0,0,1,0,0,0,0,0,0,0,0,0,0,0,0,0,0,null,1,0,1]
[null,"B163","Unsere Produktion gefährdet keine AnwohnerInnen, Gemeindemitglieder o.Ä. ","Es treten beispielsweise keine Lärm- oder Geruchsbelästigungen auf; es findet keine Exposition humantoxischer Stoffe o. Ä statt.",null,0,0,1,0,0,0,0,0,0,1,0,0,0,0,0,0,0,null,1,0,1]

{"sheet":"Hilfsblatt","index":4,"n_rows":37,"n_cols":24,"rows_kept":37,"cut":false,"hidden":true,"merged":[[18,5,18,6],[18,16,18,19]]}
[]
[]
[]
[]
[]
[]
[]
[]
[]
[]
[]
[]
[]
[]
[]
[]
[]
[]
[null,"Bewertungs-Dropdown:",null,"SDG Logos für Bewertungs-Sheets:",null,"SDG Titel für Bewertungs-Sheets:",null,"Red","Green","Blue",null,"Stagnationsgerade",null,null,null,null,"Chart Hilfsspalten:",null,null,null,null,null,null,"Kennzahlen Jahre"]
[null,1,null,null,null,"SDG 1","Armut in allen ihren Formen und überall beenden",226,6,30,null,"für Bewertungs Vergleichs Chart auf Dashboard",null,null,null,null,null,null,null,null,null,null,null,2010]
[null,2,null,null,null,"SDG 2","Den Hunger beenden, Ernährungssicherheit und eine bessere Ernährung erreichen und eine nachhaltige Landwirtschaft fördern",214,162,7,null,"Stagnationsgerade",null,null,null,null,{"$f":"IF(Einführung!$F7<>\"\",Einführung!C7,\"\")","v":"SDG 1"},{"$f":"IF(Einführung!$F7>=2,\" \",\"\")","v":""},{"$f":"IF(Einführung!$F7=3,\" \",\"\")","v":""},1,null,null,null,2011]
[null,3,null,null,null,"SDG 3","Ein gesundes Leben für alle Menschen jeden Alters gewährleisten und ihr Wohlergehen fördern",36,148,55,null,"X & Y",null,null,null,null,{"$f":"IF(Einführung!$F8<>\"\",Einführung!C8,\"\")","v":"SDG 2"},{"$f":"IF(Einführung!$F8>=2,\" \",\"\")","v":""},{"$f":"IF(Einführung!$F8=3,\" \",\"\")","v":""},1,null,null,null,2012]
[null,4,null,null,null,"SDG 4","Inklusive, gleichberechtigte und hochwertige Bildung gewährleisten und Möglichkeiten lebenslangen Lernens für alle fördern",193,22,40,null,1,null,null,null,null,{"$f":"IF(Einführung!$F9<>\"\",Einführung!C9,\"\")","v":"SDG 3"},{"$f":"IF(Einführung!$F9>=2,\" \",\"\")","v":""},{"$f":"IF(Einführung!$F9=3,\" \",\"\")","v":""},1,null,null,null,2013]
[null,5,null,null,null,"SDG 5","Geschlechtergleichstellung erreichen und alle Frauen und Mädchen zur Selbstbestimmung befähigen",230,48,28,null,2,null,null,null,null,{"$f":"IF(Einführung!$F10<>\"\",Einführung!C10,\"\")","v":"SDG 4"},{"$f":"IF(Einführung!$F10>=2,\" \",\"\")","v":""},{"$f":"IF(Einführung!$F10=3,\" \",\"\")","v":""},1,null,null,null,2014]
[null,6,null,null,null,"SDG 6","Verfügbarkeit und nachhaltige Bewirtschaftung von Wasser und Sanitärversorgung für alle gewährleisten",0,167,215,null,3,null,null,null,null,{"$f":"IF(Einführung!$F11<>\"\",Einführung!C11,\"\")","v":"SDG 5"},{"$f":"IF(Einführung!$F11>=2,\" \",\"\")","v":""},{"$f":"IF(Einführung!$F11=3,\" \",\"\")","v":""},1,null,null,null,2015]
[null,7,null,null,null,"SDG 7","Zugang zu bezahlbarer, verlässlicher, nachhaltiger und moderner Energie für alle sichern",251,184,0,null,4,null,null,null,null,{"$f":"IF(Einführung!$F12<>\"\",Einführung!C12,\"\")","v":"SDG 6"},{"$f":"IF(Einführung!$F12>=2,\" \",\"\")","v":""},{"$f":"IF(Einführung!$F12=3,\" \",\"\")","v":""},1,null,null,null,2016]
[null,8,null,null,null,"SDG 8","Dauerhaftes, inklusives und nachhaltiges Wirtschaftswachstum, produktive Vollbeschäftigung und menschenwürdige Arbeit für alle fördern",147,24,49,null,5,null,null,null,null,{"$f":"IF(Einführung!$F13<>\"\",Einführung!C13,\"\")","v":"SDG 7"},{"$f":"IF(Einführung!$F13>=2,\" \",\"\")","v":""},{"$f":"IF(Einführung!$F13=3,\" \",\"\")","v":""},1,null,null,null,2017]
[null,9,null,null,null,"SDG 9","Eine widerstandsfähige Infrastruktur aufbauen, inklusive und nachhaltige Industrialisierung fördern und Innovationen unterstützen",236,100,15,null,6,null,null,null,null,{"$f":"IF(Einführung!$F14<>\"\",Einführung!C14,\"\")","v":"SDG 8"},{"$f":"IF(Einführung!$F14>=2,\" \",\"\")","v":""},{"$f":"IF(Einführung!$F14=3,\" \",\"\")","v":""},1,null,null,null,2018]
[null,10,null,null,null,"SDG 10","Ungleichheit in und zwischen Ländern verringern",221,9,121,null,7,null,null,null,null,{"$f":"IF(Einführung!$F15<>\"\",Einführung!C15,\"\")","v":"SDG 9"},{"$f":"IF(Einführung!$F15>=2,\" \",\"\")","v":""},{"$f":"IF(Einführung!$F15=3,\" \",\"\")","v":""},1,null,null,null,2019]
[null,"Nicht anwendbar",null,null,null,"SDG 11","Städte und Siedlungen inklusiv, sicher, widerstandsfähig und nachhaltig gestalten",245,156,14,null,8,null,null,null,null,{"$f":"IF(Einführung!$F16<>\"\",Einführung!C16,\"\")","v":"SDG 10"},{"$f":"IF(Einführung!$F16>=2,\" \",\"\")","v":""},{"$f":"IF(Einführung!$F16=3,\" \",\"\")","v":""},1,null,null,null,2020]
[null,null,null,null,null,"SDG 12","Nachhaltige Konsum- und Produktionsmuster sicherstellen",210,141,13,null,9,null,null,null,null,{"$f":"IF(Einführung!$F17<>\"\",Einführung!C17,\"\")","v":"SDG 11"},{"$f":"IF(Einführung!$F17>=2,\" \",\"\")","v":""},{"$f":"IF(Einführung!$F17=3,\" \",\"\")","v":""},1,null,null,null,2021]
[null,null,null,null,null,"SDG 13","Umgehend Maßnahmen zur Bekämpfung des Klimawandels und seiner Auswirkungen ergreifen",73,118,53,null,10,null,null,null,null,{"$f":"IF(Einführung!$F18<>\"\",Einführung!C18,\"\")","v":"SDG 12"},{"$f":"IF(Einführung!$F18>=2,\" \",\"\")","v":""},{"$f":"IF(Einführung!$F18=3,\" \",\"\")","v":""},1]
[null,null,null,null,null,"SDG 14","Ozeane, Meere und Meeresressourcen im Sinne nachhaltiger Entwicklung erhalten und nachhaltig nutzen",0,118,184,null,null,null,null,null,null,{"$f":"IF(Einführung!$F19<>\"\",Einführung!C19,\"\")","v":"SDG 13"},{"$f":"IF(Einführung!$F19>=2,\" \",\"\")","v":""},{"$f":"IF(Einführung!$F19=3,\" \",\"\")","v":""},1]
[null,null,null,null,null,"SDG 15","Landökosysteme schützen, wiederherstellen und ihre nachhaltige Nutzung fördern, Wälder nachhaltig bewirtschaften, Wüstenbildung bekämpfen, Bodendegradation beenden undumkehren und dem Verlust der biologischen Vielfalt ein Ende setzen",62,166,53,null,null,null,null,null,null,{"$f":"IF(Einführung!$F20<>\"\",Einführung!C20,\"\")","v":"SDG 14"},{"$f":"IF(Einführung!$F20>=2,\" \",\"\")","v":""},{"$f":"IF(Einführung!$F20=3,\" \",\"\")","v":""},1]
[null,null,null,null,null,"SDG 16","Friedliche und inklusive Gesellschaften für eine nachhaltige Entwicklung fördern, allen Menschen Zugang zur Justiz ermöglichen und leistungsfähige, rechenschaftspflichtige und inklusive Institutionen auf allen Ebenen aufbauen",7,76,132,null,null,null,null,null,null,{"$f":"IF(Einführung!$F21<>\"\",Einführung!C21,\"\")","v":"SDG 15"},{"$f":"IF(Einführung!$F21>=2,\" \",\"\")","v":""},{"$f":"IF(Einführung!$F21=3,\" \",\"\")","v":""},1]
[null,null,null,null,null,"SDG 17","Umsetzungsmittel stärken und die globale Partnerschaft für nachhaltige Entwicklung mit neuem Leben erfüllen",30,50,99,null,null,null,null,null,null,{"$f":"IF(Einführung!$F22<>\"\",Einführung!C22,\"\")","v":"SDG 16"},{"$f":"IF(Einführung!$F22>=2,\" \",\"\")","v":""},{"$f":"IF(Einführung!$F22=3,\" \",\"\")","v":""},1]
[null,null,null,null,null,null,null,null,null,null,null,null,null,null,null,null,{"$f":"IF(Einführung!$F23<>\"\",Einführung!C23,\"\")","v":"SDG 17"},{"$f":"IF(Einführung!$F23>=2,\" \",\"\")","v":""},{"$f":"IF(Einführung!$F23=3,\" \",\"\")","v":""},1]

{"sheet":"Hilfsblatt-Dashboard","index":5,"n_rows":25,"n_cols":38,"rows_kept":25,"cut":false,"hidden":true,"merged":[[0,36,0,37],[0,25,0,26],[0,27,0,28],[0,29,0,30],[0,31,0,32],[0,33,0,34],[0,23,0,24],[0,1,0,2],[0,3,0,4],[0,5,0,6],[0,7,0,8],[0,9,0,10],[0,11,0,12],[0,13,0,14],[0,15,0,16],[0,17,0,18],[0,19,0,20],[0,21,0,22]]}
[null,"SDG 1",null,"SDG 2",null,"SDG 3",null,"SDG 4",null,"SDG 5",null,"SDG 6",null,"SDG 7",null,"SDG 8",null,"SDG 9",null,"SDG 10",null,"SDG 11",null,"SDG 12",null,"SDG 13",null,"SDG 14",null,"SDG 15",null,"SDG 16",null,"SDG 17",null,null,"Alle SDGs"]
[null,"Heute",2030,"Heute",2030,"Heute",2030,"Heute",2030,"Heute",2030,"Heute",2030,"Heute",2030,"Heute",2030,"Heute",2030,"Heute",2030,"Heute",2030,"Heute",2030,"Heute",2030,"Heute",2030,"Heute",2030,"Heute",2030,"Heute",2030,null,"Heute",2030]
["Aggregierte Werte:"]
[]
["Min",{"$f":"IF(MIN(B$26:B$526)=0, \"\", MIN(B$26:B$526))","v":""},{"$f":"IF(MIN(C$26:C$526)=0, \"\", MIN(C$26:C$526))","v":""},"","","","","","","","","","","","","","","","","","","","",{"$f":"IF(MIN(X$26:X$526)=0, \"\", MIN(X$26:X$526))","v":""},"","","","","","","","","","","",null,{"$f":"IF(MIN(AK$26:AK$526)=0, \"\", MIN(AK$26:AK$526))","v":""},""]
["Erstes Quartil",{"$f":"IFERROR(_xlfn.QUARTILE.INC(B$26:B$526, 1), \"\")","v":""},{"$f":"IFERROR(_xlfn.QUARTILE.INC(C$26:C$526, 1), \"\")","v":""},"","","","","","","","","","","","","","","","","","","","","","","","","","","","","","","","",null,"",""]
["Mittelwert",{"$f":"IFERROR(AVERAGE(B$26:B$526), \"\")","v":""},{"$f":"IFERROR(AVERAGE(C$26:C$526), \"\")","v":""},"","","","","","","","","","","","","","","","","","","","","","","","","","","","","","","","",null,"",""]
["Median",{"$f":"IFERROR(MEDIAN(B$26:B$526), \"\")","v":""},{"$f":"IFERROR(MEDIAN(C$26:C$526), \"\")","v":""},"","","","","","","","","","","","","","","","","","","","","","","","","","","","","","","","",null,{"$f":"IFERROR(MEDIAN(AK$26:AK$526), \"\")","v":""},""]
["Drittes Quartil",{"$f":"IFERROR(_xlfn.QUARTILE.INC(B$26:B$526, 3), \"\")","v":""},{"$f":"IFERROR(_xlfn.QUARTILE.INC(C$26:C$526, 3), \"\")","v":""},"","","","","","","","","","","","","","","","","","","","","","","","","","","","","","","","",null,"",""]
["Max",{"$f":"IF(MAX(B$26:B$526)=0, \"\", MAX(B$26:B$526))","v":""},{"$f":"IF(MAX(C$26:C$526)=0, \"\", MAX(C$26:C$526))","v":""},"","","","","","","","","","","","","","","","","","","","","","","","","","","","","","","","",null,"",""]
[]
["Nicht anwendbar",{"$f":"COUNTIF(B$26:B$526,\"Nicht anwendbar\")","v":0},{"$f":"COUNTIF(C$26:C$526,\"Nicht anwendbar\")","v":0},0,0,0,0,0,0,0,0,0,0,0,0,0,0,0,0,0,0,0,0,0,0,0,0,0,0,0,0,0,0,{"$f":"COUNTIF(AH$26:AH$526,\"Nicht anwendbar\")","v":0},0]
["Nicht ausgefüllt",{"$f":"COUNTIF(B$26:B$526,\"Nicht ausgefüllt\")","v":0},{"$f":"COUNTIF(C$26:C$526,\"Nicht ausgefüllt\")","v":0},0,0,0,0,0,0,0,0,0,0,0,0,0,0,0,0,0,0,0,0,0,0,0,0,0,0,0,0,0,0,{"$f":"COUNTIF(AH$26:AH$526,\"Nicht ausgefüllt\")","v":0},0]
[1,{"$f":"COUNTIF(B$26:B$526,$A14)","v":0},{"$f":"COUNTIF(C$26:C$526,$A14)","v":0},0,0,0,0,0,0,0,0,0,0,0,0,0,0,0,0,0,0,0,0,0,0,0,0,0,0,0,0,0,0,0,0]
[2,{"$f":"COUNTIF(B$26:B$526,$A15)","v":0},0,0,0,0,0,0,0,0,0,0,0,0,0,0,0,0,0,0,0,0,0,0,0,0,0,0,0,0,0,0,0,0,0]
[3,0,0,0,0,0,0,0,0,0,0,0,0,0,0,0,0,0,0,0,0,{"$f":"COUNTIF(V$26:V$526,$A16)","v":0},0,0,0,0,0,0,0,0,0,0,0,0,0]
[4,0,0,0,0,0,0,0,0,0,0,0,0,0,0,0,0,0,0,0,0,0,0,0,0,0,0,0,0,0,0,0,0,0,0]
[5,0,0,0,0,0,0,0,0,0,0,0,0,0,0,0,0,0,0,0,0,0,0,0,0,0,0,0,0,0,0,0,0,0,0]
[6,0,0,0,0,0,0,0,0,0,0,0,0,0,0,0,0,0,0,0,0,0,0,0,0,0,0,0,0,0,0,0,0,0,0]
[7,0,0,0,0,0,0,0,0,0,0,0,0,0,0,0,0,0,0,0,0,0,0,0,0,0,0,0,0,0,0,0,0,0,0]
[8,0,0,0,0,0,0,0,0,0,0,0,0,0,0,0,0,0,0,0,0,0,0,0,0,0,0,0,0,0,0,0,0,0,0]
[9,0,0,0,0,0,0,0,0,0,0,0,0,0,0,0,0,0,0,0,0,0,0,0,0,0,0,0,0,0,0,0,0,0,0]
[10,0,0,0,0,0,0,0,{"$f":"COUNTIF(I$26:I$526,$A23)","v":0},0,0,0,0,0,0,0,0,0,0,0,0,0,0,0,0,0,0,0,0,0,0,0,0,0,0]
[null,{"$f":"IF(SUM(B12:B23)=0,\"\",SUM(B12:B23))","v":""},{"$f":"IF(SUM(C12:C23)=0,\"\",SUM(C12:C23))","v":""},"","","","","","","","","","","","","","","","","","","","","","","","","","","","","","","",""]
["Einzelwerte:"]

{"sheet":"Dashboard","index":6,"n_rows":50,"n_cols":12,"rows_kept":50,"cut":false,"hidden":true,"merged":[[1,2,1,12],[2,1,2,12],[29,8,29,9],[29,10,29,11],[29,7,30,7]]}
[]
[null,null,"Ergebnisdashboard"]
[]
[]
[]
[]
[]
[]
[]
[]
[]
[]
[]
[]
[]
[]
[]
[]
[]
[]
[]
[]
[]
[]
[]
[]
[]
[null,null,"Ausgewähltes Thema:",{"$f":"Auswahl!D6","v":"Alle Themen"}]
[]
[null,null,null,null,null,null,null,"Indikatoren-Anzahl","Anteil ausgefüllter Indikatoren",null,"Mittelwert"]
[null,null,null,null,null,null,null,null,"Status Quo","Zielwert 2030","Status Quo","Zielwert 2030"]
[null,null,null,null,null,null,"Alle SDGs",{"$f":"SUM(H34:H50)","v":0},{"$f":"IF(ISERROR(AVERAGE(I34:I50)),\"\",AVERAGE(I34:I50))","v":""},{"$f":"IF(ISERROR(AVERAGE(J34:J50)),\"\",AVERAGE(J34:J50))","v":""},{"$f":"IF(ISERROR(AVERAGE(K34:K50)),\"\",AVERAGE(K34:K50))","v":""},{"$f":"IF(ISERROR(AVERAGE(L34:L50)),\"\",AVERAGE(L34:L50))","v":""}]
[]
[null,null,null,null,null,null,"SDG 1"]
[null,null,null,null,null,null,"SDG 2"]
[null,null,null,null,null,null,"SDG 3"]
[null,null,null,null,null,null,"SDG 4"]
[null,null,null,null,null,null,"SDG 5"]
[null,null,null,null,null,null,"SDG 6"]
[null,null,null,null,null,null,"SDG 7"]
[null,null,null,null,null,null,"SDG 8"]
[null,null,null,null,null,null,"SDG 9"]
[null,null,null,null,null,null,"SDG 10"]
[null,null,null,null,null,null,"SDG 11"]
[null,null,null,null,null,null,"SDG 12"]
[null,null,null,null,null,null,"SDG 13"]
[null,null,null,null,null,null,"SDG 14"]
[null,null,null,null,null,null,"SDG 15"]
[null,null,null,null,null,null,"SDG 16"]
[null,null,null,null,null,null,"SDG 17"]

{"sheet":"Bewertungsübersicht","index":7,"n_rows":389,"n_cols":5,"rows_kept":389,"cut":false,"hidden":true,"merged":[[2,1,2,4],[7,1,7,4],[3,1,3,2],[93,1,93,4],[121,1,121,4],[174,1,174,4],[314,1,314,4],[1,2,1,4],[4,3,4,4],[4,1,5,1],[4,2,5,2]]}
[]
[null,null,"Übersicht Ihrer Indikatorenbewertungen zu den einzelnen SDGs"]
[]
[null,"Nachfolgend können Sie nun sehen, welche Indikatoren mit welchen SDGs verknüpft sind. Außerdem werden Ihnen Ihre eingetragenen Bewertungen angezeigt.",null,"Ausgewähltes Thema:",{"$f":"Auswahl!D6","v":"Alle Themen"}]
[null,"Indikator ID","Beschreibung","Ihre Bewertung"]
[null,null,null,"Heute",2030]
[]
[null,"SDG 3"]
[null,"B1","Arbeitsschutz und Sicherheit sind Teil unserer Unternehmenspolitik und Unternehmenskultur. ",1]
[null,"B2","Unser Arbeitsschutz- und Gesundheitsschutzmanagementsystem geht über gesetzliche Anforderungen hinaus."]
[null,"B4","Für alle Arbeitsplätze in unserem Unternehmen liegen Gefährdungsbeurteilungen vor. "]
[null,"B5","Wir aktualisieren unsere Gefährdungsbeurteilungen regelmäßig. "]
[null,"B6","Unsere Gefährdungsbeurteilungen enthalten Angaben zur Prävention von Gefährdungen."]
[null,"B7","Unsere Gefährdungsbeurteilungen enthalten Angaben darüber, was im Gefahrfall / Notfall zu tun ist. "]
[null,"B8","Die Gefährdungsbeurteilungen erfassen auch psychische Belastungen, denen die Mitarbeitenden ausgesetzt sind."]
[null,"B14","Wir erfassen die krankheitsbedingte Abwesenheitsrate unserer Mitarbeitenden."]
[null,"B21","Jede/r Mitarbeitende weiß, wie er / sie sich im Notfall zu verhalten hat. "]
[null,"B22","An keinem unserer Unternehmensstandorte findet Kinderarbeit statt."]
[null,"B23","Unsere Mitarbeitenden werden regelmäßig zu allgemeinen Aspekten des sicheren und gesunden Arbeitens geschult.  "]
[null,"B24","Unsere Mitarbeitenden werden regelmäßig bezüglich der Gefährdungen der Arbeitsplätze und Arbeitsmittel, mit denen sie in Kontakt kommen, geschult."]
[null,"B26","Wir bieten unseren Mitarbeitenden regelmäßig Schulungen / Weiterbildungen zum Thema gesundes und sicheres Arbeiten an."]
[null,"B27","Wir führen regelmäßig Informationskampagnen, Programme und Initiativen zum Thema Arbeits- und Gesundheitsschutz durch."]
[null,"B28","Unseren Mitarbeitenden stehen verschiedene Angebote zur Gesundheitsförderung zur Verfügung. "]
[null,"B29","Wir weisen unsere Mitarbeitenden auf Vorsorgeuntersuchungen hin."]
[null,"B30","Wir bieten unseren Mitarbeitenden Beratungen für einen gesunden Arbeitsplatz an."]
[null,"B31","Wir haben Angebote zur Gesundheitsberatung für unserer Mitarbeiterschaft."]
[null,"B32","Unseren Mitarbeitenden steht ein umfassendes Sportprogramm zur Verfügung. "]
[null,"B34","Gefährdungen verhindern wir vorwiegend über konstruktive Schutzmaßnahmen oder Substitution."]
[null,"B35","Wir führen organisatorische und technische Schutzmaßnahmen aus, um sichere Arbeitsplätze zu realisieren. "]
[null,"B36","Erst wenn organisatorische und technische Schutzmaßnahmen ausgeschöpft und nicht ausreichend sind, sichern wir unsere Mitarbeiter über die Verwendung von persönlicher Schutzausrüstung. "]
[null,"B37","In unserem Unternehmen gibt es keine Arbeitsplätze, an denen dauerhaft PSA getragen werden muss. "]
[null,"B38","In unserem Unternehmen gibt es keine Arbeitsmittel, bei deren Nutzung dauerhaft PSA getragen werden muss. "]
[null,"B39","In unserem Unternehmen werden keine Gefahrstoffe eingesetzt."]
[null,"B42","In keinem unserer Produktionsprozesse werden für den Menschen gefährliche gasförmige Emissionen frei."]
[null,"B43","In keinem unserer Produktionsprozesse werden für den Menschen gefährliche flüssige Emissionen frei."]
[null,"B44","In keinem unserer Produktionsprozesse werden für den Menschen gefährliche feste Emissionen frei.  "]
[null,"B45","Unsere Mitarbeitenden sind keinen mechanischen / physischen Gefährdungen ausgesetzt."]
[null,"B46","Unsere Mitarbeitenden sind (objektiv betrachtet) keinen psychischen Belastungen ausgesetzt."]
[null,"B47","Unsere Mitarbeitenden sind keinen chemischen oder biologischen Gefährdungen ausgesetzt. "]
[null,"B48","Bei uns gibt es keine Alleinarbeitsplätze für Mitarbeitende, die gefährliche / physisch fordernde Tätigkeiten ausüben müssen. "]
[null,"B49","Wir stellen jedem Mitarbeitendem einen ergonomischen Arbeitsplatz zur Verfügung. "]
[null,"B50","Wir unterstützen unsere Mitarbeitenden dabei auch ihren Homeoffice-Arbeitsplatz ergonomisch einzurichten "]
[null,"B51","Alle Arbeitsplätze sind rauchfreie Zonen."]
[null,"B52","Unser gesamtes Betriebsgelände (an allen Standorten) ist eine rauchfreie Zone."]
[null,"B53","Im letzten Jahr hatten wir keine Arbeitsunfälle, die zu Ausfalltagen führten. "]
[null,"B54","Im letzten Jahr hatten wir keine Arbeitsunfälle mit tödlichem Ausgang."]
[null,"B55","Im letzten Jahr konnten alle Verunfallten durch unsere betriebsinternen ErsthelferInnen behandelt werden. "]
[null,"B59","Geschieht ein Arbeitsunfall werden Maßnahmen zur Vermeidung ähnlicher Unfälle in Zukunft getroffen. "]
[null,"B61","Geschieht ein Arbeitsunfall, wird die Unfallursache ermittelt. "]
[null,"B62","Wir unterstützen verunfallte Mitarbeitende auf ihrem vollständigen Genesungsweg."]
[null,"B67","Wir klären in Zusammenarbeit mit dem arbeitsmedizinischen Dienst unsere Mitarbeitenden über berufsbedingte Erkrankungen auf."]
[null,"B68","Wir stellen sicher, dass jeder Mitarbeitende über die arbeitsmedizinischen Pflichtuntersuchungen informiert ist. "]
[null,"B69","Wir stellen sicher, dass jeder Mitarbeitende über die arbeitsmedizinischen Angebotsuntersuchungen informiert ist."]
[null,"B70","Wir stellen sicher, dass jeder Mitarbeitende über arbeitsmedizinische Wunschuntersuchungen informiert ist."]
[null,"B71","Wir stellen sicher, dass jeder Mitarbeitende seine arbeitsmedizinischen Pflichtuntersuchungen regelmäßig wahrnimmt. "]
[null,"B72","Wir ermutigen unsere Mitarbeitenden dazu arbeitsmedizinische Angebotsuntersuchungen regelmäßig wahrzunehmen."]
[null,"B73","Wir stellen sicher, dass jeder Mitarbeitende seine arbeitsmedizinischen Pflichtuntersuchungen regelmäßig wahrnimmt. "]
[null,"B74","Im letzten Jahr traten bei aktuellen oder ehemaligen Mitarbeitenden keine Berufskrankheiten auf, die auf die Arbeit in unserem Unternehmen rückführbar sind. "]
[null,"B75","Wir erfassen und dokumentieren die Rate der Berufskrankheiten."]
[null,"B79","Alle Mitarbeitenden haben während der Arbeit Zugang zu sauberem Trinkwasser. "]
[null,"B80","Alle Mitarbeitenden haben Zugang zu Wasserspendern."]
[null,"B81","Alle Mitarbeitenden haben bei der Arbeit kostengünstig Zugang zu Nahrungsmitteln. "]
[null,"B82","Alle Mitarbeitenden haben während der Arbeit Zugang zu hygienischen Sanitäranlagen."]
[null,"B83","Wir schulen unsere Mitarbeitenden regelmäßig im Bereich Hygiene."]
[null,"B84","Wir bieten Schulungen zum Thema gesunde Ernährung und Lebensweise an. "]
[null,"B85","Wir führen regelmäßig Informationskampagnen zu den Themen gesunde Ernährung und Lebensweise an."]
[null,"B87","Bei uns muss kein Mitarbeitender Schichtarbeit leisten. "]
[null,"B88","Falls Schichtarbeit erforderlich ist, wird diese bei uns unter Kriterien des Gesundheitsschutzes geplant. "]
[null,"B90","Alle Mitarbeitenden mit sehr vielen Überstunden werden kontaktiert und ein Plan zur Reduzierung wird mit ihnen erarbeitet. "]
[null,"B92","Wir ermöglichen unseren Mitarbeitenden Auszeiten. "]
[null,"B93","Unseren Mitarbeitenden stehen Räume zur Erholung zur Verfügung. "]
[null,"B111","Besonderes Engagement im Gesundheits- und Arbeitsschutz wird honoriert. "]
[null,"B113","Wir haben eine unternehmensweit gültige Leitlinie zu alterns- und altersgerechtem Arbeiten verabschiedet."]
[null,"B114","Unsere Arbeitsplätze werden altersgerecht und alternsgerecht angepasst. "]
[null,"B115","Arbeitsaufgaben werden altersgerecht und alternsgerecht angepasst. "]
[null,"B116","Wir realisieren Programme zum Erfahrungsaustausch zwischen jung und alt. "]
[null,"B118","Wir sichern unsere Mitarbeitenden auch für ihren Lebensabend ab."]
[null,"B119","Wir unterstützen unsere Mitarbeitenden in Rekonvaleszenzzeiten. "]
[null,"B120","Wir unterstützen unsere Mitarbeitenden beim Übergang in die Rente."]
[null,"B127","All unsere Unternehmensstandorte sind barrierefrei. "]
[null,"B128","Wir garantieren auch Mitarbeitenden mit Behinderung einen möglichst normalen Arbeitsalltag, indem wir alle für sie erforderlichen Erleichterungen umsetzen."]
[null,"B145","In unserem Unternehmen sind im letzten Jahr keine Fälle von Belästigung oder Gewalt am Arbeitsplatz gemeldet worden. "]
[null,"B146","Gegen Diskriminierung am Arbeitsplatz verfolgen wir eine Nulltoleranzpolitik."]
[null,"B147","Es existieren Prozesse, über die soziale Risiken identifiziert und bewertet werden. "]
[null,"B151","Aufgetretene Fälle von Diskriminierung konnten über Mediationsaktivitäten gelöst werden. "]
[null,"B155","Bei der Auswahl unserer Lieferanten / Lieferantinnen berücksichtigen wir Nachhaltigkeitsstandards."]
[null,"B156","Über regelmäßige Audits prüfen wir den Arbeitsschutz sowie weitere soziale Aspekte bei unseren Zulieferern / Zulieferinnen. "]
[null,"B157","Bei der Auswahl von Zulieferern / Zulieferinnen achten wir darauf, dass in den Unternehmen keine Kinderarbeit stattfindet. "]
[null,"B159","In unseren Betriebsanleitungen sind Informationen über die sichere Anwendung unserer Produkte enthalten."]
[null,"B160","Unsere Produkte enthalten keine gesundheitsgefährdenden Inhaltsstoffe."]
[null,"B161","Wir übertreffen alle gesetzlichen Anforderungen an die Beschaffenheit unserer Produkte. "]
[null,"B162","Über Nachhaltigkeitslabels informieren wir über die Sicherheit unserer Produkte. "]
[null,"B163","Unsere Produktion gefährdet keine AnwohnerInnen, Gemeindemitglieder o.Ä. "]
[null,"SDG 4"]
[null,"B12","Die Gefährdungsbeurteilungen und Betriebsanweisungen werden in die Schulung unserer Mitarbeitenden eingebunden. "]
[null,"B13","Gefährdungsbeurteilungen und Betriebsanweisungen sind für alle Mitarbeitenden jederzeit zugänglich. "]
[null,"B17","Belange des Arbeits- und Gesundheitsschutzes werden regelmäßig beispielsweise über Versammlungen oder Aushänge an alle Mitarbeitenden kommuniziert. "]
[null,"B21","Jede/r Mitarbeitende weiß, wie er / sie sich im Notfall zu verhalten hat. "]
[null,"B22","An keinem unserer Unternehmensstandorte findet Kinderarbeit statt."]
[null,"B23","Unsere Mitarbeitenden werden regelmäßig zu allgemeinen Aspekten des sicheren und gesunden Arbeitens geschult.  "]
[null,"B24","Unsere Mitarbeitenden werden regelmäßig bezüglich der Gefährdungen der Arbeitsplätze und Arbeitsmittel, mit denen sie in Kontakt kommen, geschult."]
[null,"B25","Alle Beauftragten werden regelmäßig bezüglich ihrer Aufgaben geschult und trainiert. "]
[null,"B26","Wir bieten unseren Mitarbeitenden regelmäßig Schulungen / Weiterbildungen zum Thema gesundes und sicheres Arbeiten an."]
[null,"B27","Wir führen regelmäßig Informationskampagnen, Programme und Initiativen zum Thema Arbeits- und Gesundheitsschutz durch."]
[null,"B56","Wir erfassen, dokumentieren und kommunizieren Arbeitsunfälle."]
[null,"B63","Wir dokumentieren und kommunizieren Beinaheunfälle und unsichere Zustände."]
[null,"B65","Unsere Mitarbeitenden sind darüber informiert, dass es ein Meldesystem zur Erfassung von unsicheren Zuständen und Beinaheunfällen gibt. "]
[null,"B66","Wir berechnen und kommunizieren definierte Leistungskennzahlen bezüglich unserer Arbeits- und Beinaheunfälle. "]
[null,"B83","Wir schulen unsere Mitarbeitenden regelmäßig im Bereich Hygiene."]
[null,"B84","Wir bieten Schulungen zum Thema gesunde Ernährung und Lebensweise an. "]
[null,"B106","Unsere Mitarbeitenden können Verbesserungsvorschläge zu allen Unternehmensbereichen einreichen. "]
[null,"B107","Das Ideenmanagement und Vorschlagswesen ist in den persönlichen Zielen unserer Mitarbeitenden und in den Abteilungszielen verankert"]
[null,"B108","Wir haben ein Ideenmanagement und Vorschlagswesen speziell für den Bereich nachhaltige Entwicklung"]
[null,"B116","Wir realisieren Programme zum Erfahrungsaustausch zwischen jung und alt. "]
[null,"B117","Ältere Mitarbeitende können über Programme ihre Erfahrungen in die Verbesserung / Entwicklung von Prozessen einbinden. "]
[null,"B136","Den Mitarbeitenden werden Weiterbildungsmöglichkeiten proaktiv aufgezeigt."]
[null,"B137","Die Teilnahme an Schulungs- und Fortbildungsmaßnahmen, die die persönliche und berufliche Entwicklung unserer Mitarbeitenden fördert, wird jederzeit ermöglicht."]
[null,"B138","Unsere Mitarbeitenden nehmen regelmäßig an Trainings, Fortbildungsmaßnahmen etc. teil. "]
[null,"B140","Wir bieten all unseren Auszubildenden / dualen Studierenden eine Übernahmegarantie."]
[null,"B150","Unsere Mitarbeitenden sind über die Anlaufstelle sowie das Meldesystem für den Fall von Gewalt, Belästigung etc. informiert. "]
[null,"B152","Wir schulen unsere Mitarbeiterschaft regelmäßig zu unserer Sozialpolitik und im Bereich der Sozialkompetenz. "]
[null,"SDG 5"]
[null,"B15","Die Mitwirkung aller Mitarbeitenden im Arbeits- und Gesundheitsschutz wird vorausgesetzt und gefördert. "]
[null,"B22","An keinem unserer Unternehmensstandorte findet Kinderarbeit statt."]
[null,"B79","Alle Mitarbeitenden haben während der Arbeit Zugang zu sauberem Trinkwasser. "]
[null,"B80","Alle Mitarbeitenden haben Zugang zu Wasserspendern."]
[null,"B81","Alle Mitarbeitenden haben bei der Arbeit kostengünstig Zugang zu Nahrungsmitteln. "]
[null,"B82","Alle Mitarbeitenden haben während der Arbeit Zugang zu hygienischen Sanitäranlagen."]
[null,"B89","Die Überstunden unserer Mitarbeitenden werden erfasst und vergütet bzw. können abgebaut werden. "]
[null,"B94","Es ist üblich, dass unsere Mitarbeitenden ihren Anspruch auf Elternzeit etc. in vollem Umfang wahrnehmen. "]
[null,"B95","Es ist üblich, dass unsere Mitarbeitenden nach der Elternzeit etc. ins Unternehmen zurückkehren. "]
[null,"B96","Es ist üblich, dass unsere Mitarbeitenden nach der Elternzeit etc. auf den gleichen Arbeitsplatz zurückkehren. "]
[null,"B97","Wir bieten Programme / Angebote an, die unseren Mitarbeitenden den Einstieg nach der Elternzeit etc. vereinfachen."]
[null,"B98","Unser Unternehmen besitzt einen Betriebskindergarten / hilft beim Finden eines KiTa-Platzes."]
[null,"B100","Wir bieten unseren Mitarbeitenden vertragliche bzw. arbeitszeittechnische Flexibilitäten und Unterstützungsangebote, für den Fall, dass sie die Pflege eines Angehörigen übernehmen müssen."]
[null,"B101","Unsere Mitarbeitenden können vollständig im Homeoffice arbeiten. "]
[null,"B102","In Ausnahmefällen können die Homeoffice-Zeiten unserer Mitarbeitenden ausgeweitet werden. "]
[null,"B103","Unser Unternehmen hat einen Betriebsrat / eine Arbeitnehmervertretung."]
[null,"B104","Wir bieten allen Mitarbeitenden verschiedene Möglichkeiten zur Mitwirkung."]
[null,"B105","Wir bieten allen Mitarbeitenden verschiedene Möglichkeiten zur Mitbestimmung."]
[null,"B106","Unsere Mitarbeitenden können Verbesserungsvorschläge zu allen Unternehmensbereichen einreichen. "]
[null,"B107","Das Ideenmanagement und Vorschlagswesen ist in den persönlichen Zielen unserer Mitarbeitenden und in den Abteilungszielen verankert"]
[null,"B108","Wir haben ein Ideenmanagement und Vorschlagswesen speziell für den Bereich nachhaltige Entwicklung"]
[null,"B109","Mitarbeitende werden für eingereichte Verbesserungsvorschläge honoriert. "]
[null,"B110","Mitarbeitende werden für eingereichte Verbesserungsvorschläge, die in die Praxis umgesetzt werden, honoriert. "]
[null,"B111","Besonderes Engagement im Gesundheits- und Arbeitsschutz wird honoriert. "]
[null,"B112","Wir beteiligen unsere Mitarbeitenden am unternehmerischen Erfolg."]
[null,"B121","Chancengleichheit und Gleichberechtigung werden in unserer Unternehmenspolitik festgeschrieben. "]
[null,"B124","In unserer Mitarbeiterschaft herrscht ein ausgewogenes Verhältnis zwischen den Geschlechtern."]
[null,"B125","Unsere Personalauswahl findet zu jeder Zeit unabhängig von Ethnie, Geschlecht, Handicap oder Alter des Bewerbenden statt."]
[null,"B129","Führungspositionen sowie die Aufsichtsorgane unseres Unternehmens sind divers besetzt."]
[null,"B130","Bei der Besetzung einer Führungsposition oder eines Sitzes in einem Aufsichtsorgan herrscht für alle qualifizierten Mitarbeitenden Chancengleichheit."]
[null,"B131","Die Höhe von Gehältern ist in unserem Unternehmen vollständig von Ethnie, Geschlecht, Handicap oder Alter unabhängig."]
[null,"B132","Frauen und Männer erhalten in gleichen Positionen das gleiche Gehalt. "]
[null,"B133","Wir zahlen allen unseren Mitarbeitenden weltweit den landesüblichen Mindestlohn bzw. einen Lohn, der mindestens die grundlegenden Lebensbedürfnisse vollständig abdeckt. "]
[null,"B134","Die Vergabe von Beförderungen findet unabhängig von Ethnie, Geschlecht, Handicap oder Alter des Mitarbeitenden statt. "]
[null,"B136","Den Mitarbeitenden werden Weiterbildungsmöglichkeiten proaktiv aufgezeigt."]
[null,"B137","Die Teilnahme an Schulungs- und Fortbildungsmaßnahmen, die die persönliche und berufliche Entwicklung unserer Mitarbeitenden fördert, wird jederzeit ermöglicht."]
[null,"B138","Unsere Mitarbeitenden nehmen regelmäßig an Trainings, Fortbildungsmaßnahmen etc. teil. "]
[null,"B141","Wir beschäftigen all unsere Beschäftigten unbefristet."]
[null,"B142","Wir bemühen uns befristet Beschäftigten auf lange Sicht eine unbefristete Anstellung anzubieten. "]
[null,"B143","Wir haben eine festgelegte, unternehmensweit gültige Sozialpolitik für ein gutes Miteinander."]
[null,"B144","In unserem Unternehmen sind im letzten Jahr keine Fälle von Diskriminierung gemeldet worden."]
[null,"B145","In unserem Unternehmen sind im letzten Jahr keine Fälle von Belästigung oder Gewalt am Arbeitsplatz gemeldet worden. "]
[null,"B146","Gegen Diskriminierung am Arbeitsplatz verfolgen wir eine Nulltoleranzpolitik."]
[null,"B147","Es existieren Prozesse, über die soziale Risiken identifiziert und bewertet werden. "]
[null,"B148","Es besteht ein definiertes und in der MitarbeiterInnenschaft kommuniziertes Meldesystem für Fälle von Diskriminierung, Gewalt etc.  am Arbeitsplatz."]
[null,"B149","Es besteht eine feste Anlaufstelle für den Fall von Diskriminierung, Belästigung etc."]
[null,"B150","Unsere Mitarbeitenden sind über die Anlaufstelle sowie das Meldesystem für den Fall von Gewalt, Belästigung etc. informiert. "]
[null,"B151","Aufgetretene Fälle von Diskriminierung konnten über Mediationsaktivitäten gelöst werden. "]
[null,"B152","Wir schulen unsere Mitarbeiterschaft regelmäßig zu unserer Sozialpolitik und im Bereich der Sozialkompetenz. "]
[null,"B154","Wir achten darauf, dass auch unsere Zulieferer / Zulieferinnen soziale Anspruchskriterien haben und erfüllen."]
[null,"B156","Über regelmäßige Audits prüfen wir den Arbeitsschutz sowie weitere soziale Aspekte bei unseren Zulieferern / Zulieferinnen. "]
[null,"B158","Wir achten darauf, dass unsere Zulieferer / Zulieferinnen ihren Mitarbeitenden mindestens den landesüblichen Mindestlohn zahlen. "]
[null,"SDG 8"]
[null,"B1","Arbeitsschutz und Sicherheit sind Teil unserer Unternehmenspolitik und Unternehmenskultur. ",1]
[null,"B2","Unser Arbeitsschutz- und Gesundheitsschutzmanagementsystem geht über gesetzliche Anforderungen hinaus."]
[null,"B3","Unser Arbeitsschutzmanagementsystem ist zertifiziert."]
[null,"B4","Für alle Arbeitsplätze in unserem Unternehmen liegen Gefährdungsbeurteilungen vor. "]
[null,"B5","Wir aktualisieren unsere Gefährdungsbeurteilungen regelmäßig. "]
[null,"B6","Unsere Gefährdungsbeurteilungen enthalten Angaben zur Prävention von Gefährdungen."]
[null,"B7","Unsere Gefährdungsbeurteilungen enthalten Angaben darüber, was im Gefahrfall / Notfall zu tun ist. "]
[null,"B8","Die Gefährdungsbeurteilungen erfassen auch psychische Belastungen, denen die Mitarbeitenden ausgesetzt sind."]
[null,"B9","Wir führen regelmäßig Begehungen aller Arbeitsplätze im Unternehmen durch. "]
[null,"B10","Zu allen Arbeitsplätzen, Arbeitsmitteln und Arbeitsstoffen existieren Betriebs- bzw. Arbeitsanweisungen."]
[null,"B11","Betriebs- bzw. Arbeitsanweisungen werden regelmäßig aktualisiert. "]
[null,"B12","Die Gefährdungsbeurteilungen und Betriebsanweisungen werden in die Schulung unserer Mitarbeitenden eingebunden. "]
[null,"B13","Gefährdungsbeurteilungen und Betriebsanweisungen sind für alle Mitarbeitenden jederzeit zugänglich. "]
[null,"B15","Die Mitwirkung aller Mitarbeitenden im Arbeits- und Gesundheitsschutz wird vorausgesetzt und gefördert. "]
[null,"B16","Belange des Arbeitsschutzes werden regelmäßig in Sitzungen der obersten Führungskräfte thematisiert."]
[null,"B17","Belange des Arbeits- und Gesundheitsschutzes werden regelmäßig beispielsweise über Versammlungen oder Aushänge an alle Mitarbeitenden kommuniziert. "]
[null,"B18","Wir berechnen und kommunizieren definierte Leistungskennzahlen zum Thema Arbeits- und Gesundheitsschutz. "]
[null,"B19","Alle Beauftragtenfunktionen sind mindestens im gesetzlich erforderlichen Ausmaß abgedeckt. "]
[null,"B20","Wir führen regelmäßig Übungen für den Notfall durch. "]
[null,"B21","Jede/r Mitarbeitende weiß, wie er / sie sich im Notfall zu verhalten hat. "]
[null,"B22","An keinem unserer Unternehmensstandorte findet Kinderarbeit statt."]
[null,"B23","Unsere Mitarbeitenden werden regelmäßig zu allgemeinen Aspekten des sicheren und gesunden Arbeitens geschult.  "]
[null,"B24","Unsere Mitarbeitenden werden regelmäßig bezüglich der Gefährdungen der Arbeitsplätze und Arbeitsmittel, mit denen sie in Kontakt kommen, geschult."]
[null,"B25","Alle Beauftragten werden regelmäßig bezüglich ihrer Aufgaben geschult und trainiert. "]
[null,"B26","Wir bieten unseren Mitarbeitenden regelmäßig Schulungen / Weiterbildungen zum Thema gesundes und sicheres Arbeiten an."]
[null,"B27","Wir führen regelmäßig Informationskampagnen, Programme und Initiativen zum Thema Arbeits- und Gesundheitsschutz durch."]
[null,"B28","Unseren Mitarbeitenden stehen verschiedene Angebote zur Gesundheitsförderung zur Verfügung. "]
[null,"B29","Wir weisen unsere Mitarbeitenden auf Vorsorgeuntersuchungen hin."]
[null,"B30","Wir bieten unseren Mitarbeitenden Beratungen für einen gesunden Arbeitsplatz an."]
[null,"B31","Wir haben Angebote zur Gesundheitsberatung für unserer Mitarbeiterschaft."]
[null,"B32","Unseren Mitarbeitenden steht ein umfassendes Sportprogramm zur Verfügung. "]
[null,"B33","Wir stellen allen Mitarbeitenden Dienstfahrräder zur Verfügung."]
[null,"B34","Gefährdungen verhindern wir vorwiegend über konstruktive Schutzmaßnahmen oder Substitution."]
[null,"B35","Wir führen organisatorische und technische Schutzmaßnahmen aus, um sichere Arbeitsplätze zu realisieren. "]
[null,"B36","Erst wenn organisatorische und technische Schutzmaßnahmen ausgeschöpft und nicht ausreichend sind, sichern wir unsere Mitarbeiter über die Verwendung von persönlicher Schutzausrüstung. "]
[null,"B37","In unserem Unternehmen gibt es keine Arbeitsplätze, an denen dauerhaft PSA getragen werden muss. "]
[null,"B38","In unserem Unternehmen gibt es keine Arbeitsmittel, bei deren Nutzung dauerhaft PSA getragen werden muss. "]
[null,"B39","In unserem Unternehmen werden keine Gefahrstoffe eingesetzt."]
[null,"B40","Bevor ein gefährliches Arbeitsmittel eingesetzt wird, werden Substitutionsmöglichkeiten geprüft."]
[null,"B41","Bevor ein Gefahrstoff eingesetzt wird, werden Substitutionsmöglichkeiten geprüft. "]
[null,"B42","In keinem unserer Produktionsprozesse werden für den Menschen gefährliche gasförmige Emissionen frei."]
[null,"B43","In keinem unserer Produktionsprozesse werden für den Menschen gefährliche flüssige Emissionen frei."]
[null,"B44","In keinem unserer Produktionsprozesse werden für den Menschen gefährliche feste Emissionen frei.  "]
[null,"B45","Unsere Mitarbeitenden sind keinen mechanischen / physischen Gefährdungen ausgesetzt."]
[null,"B46","Unsere Mitarbeitenden sind (objektiv betrachtet) keinen psychischen Belastungen ausgesetzt."]
[null,"B47","Unsere Mitarbeitenden sind keinen chemischen oder biologischen Gefährdungen ausgesetzt. "]
[null,"B48","Bei uns gibt es keine Alleinarbeitsplätze für Mitarbeitende, die gefährliche / physisch fordernde Tätigkeiten ausüben müssen. "]
[null,"B49","Wir stellen jedem Mitarbeitendem einen ergonomischen Arbeitsplatz zur Verfügung. "]
[null,"B50","Wir unterstützen unsere Mitarbeitenden dabei auch ihren Homeoffice-Arbeitsplatz ergonomisch einzurichten "]
[null,"B51","Alle Arbeitsplätze sind rauchfreie Zonen."]
[null,"B52","Unser gesamtes Betriebsgelände (an allen Standorten) ist eine rauchfreie Zone."]
[null,"B53","Im letzten Jahr hatten wir keine Arbeitsunfälle, die zu Ausfalltagen führten. "]
[null,"B54","Im letzten Jahr hatten wir keine Arbeitsunfälle mit tödlichem Ausgang."]
[null,"B55","Im letzten Jahr konnten alle Verunfallten durch unsere betriebsinternen ErsthelferInnen behandelt werden. "]
[null,"B56","Wir erfassen, dokumentieren und kommunizieren Arbeitsunfälle."]
[null,"B57","Wir unterschieden verschiedene Kategorien an Arbeitsunfällen."]
[null,"B58","Geschieht ein Arbeitsunfall, wird ein definierter Prozess zur Aufarbeitung des Vorfalls angestoßen."]
[null,"B59","Geschieht ein Arbeitsunfall werden Maßnahmen zur Vermeidung ähnlicher Unfälle in Zukunft getroffen. "]
[null,"B60","Geschieht ein Arbeitsunfall, werden die Verletzungsart und die Schwere des Unfalls dokumentiert."]
[null,"B61","Geschieht ein Arbeitsunfall, wird die Unfallursache ermittelt. "]
[null,"B62","Wir unterstützen verunfallte Mitarbeitende auf ihrem vollständigen Genesungsweg."]
[null,"B63","Wir dokumentieren und kommunizieren Beinaheunfälle und unsichere Zustände."]
[null,"B64","Wir haben ein Meldesystem etabliert, über das auch unsichere Zustände und Beinaheunfälle erfasst werden. "]
[null,"B65","Unsere Mitarbeitenden sind darüber informiert, dass es ein Meldesystem zur Erfassung von unsicheren Zuständen und Beinaheunfällen gibt. "]
[null,"B66","Wir berechnen und kommunizieren definierte Leistungskennzahlen bezüglich unserer Arbeits- und Beinaheunfälle. "]
[null,"B67","Wir klären in Zusammenarbeit mit dem arbeitsmedizinischen Dienst unsere Mitarbeitenden über berufsbedingte Erkrankungen auf."]
[null,"B68","Wir stellen sicher, dass jeder Mitarbeitende über die arbeitsmedizinischen Pflichtuntersuchungen informiert ist. "]
[null,"B69","Wir stellen sicher, dass jeder Mitarbeitende über die arbeitsmedizinischen Angebotsuntersuchungen informiert ist."]
[null,"B70","Wir stellen sicher, dass jeder Mitarbeitende über arbeitsmedizinische Wunschuntersuchungen informiert ist."]
[null,"B71","Wir stellen sicher, dass jeder Mitarbeitende seine arbeitsmedizinischen Pflichtuntersuchungen regelmäßig wahrnimmt. "]
[null,"B72","Wir ermutigen unsere Mitarbeitenden dazu arbeitsmedizinische Angebotsuntersuchungen regelmäßig wahrzunehmen."]
[null,"B73","Wir stellen sicher, dass jeder Mitarbeitende seine arbeitsmedizinischen Pflichtuntersuchungen regelmäßig wahrnimmt. "]
[null,"B74","Im letzten Jahr traten bei aktuellen oder ehemaligen Mitarbeitenden keine Berufskrankheiten auf, die auf die Arbeit in unserem Unternehmen rückführbar sind. "]
[null,"B75","Wir erfassen und dokumentieren die Rate der Berufskrankheiten."]
[null,"B76","Für Mitarbeitende, die nach längerer Abwesenheit ins Unternehmen zurückkehren, haben wir ein Betriebliches Eingliederungsmanagement (BEM) etabliert. "]
[null,"B77","Für Mitarbeitende, die nach längerer Abwesenheit ins Unternehmen zurückkehren, gibt es einen festen Ansprechpartner /eine Ansprechpartnerin / eine Anlaufstelle für Probleme."]
[null,"B78","Wir gehen proaktiv auf Mitarbeitende zu, die nach längerer Abwesenheit ins Unternehmen zurückkehren, um ihnen bei der Reintegration beizustehen."]
[null,"B79","Alle Mitarbeitenden haben während der Arbeit Zugang zu sauberem Trinkwasser. "]
[null,"B80","Alle Mitarbeitenden haben Zugang zu Wasserspendern."]
[null,"B81","Alle Mitarbeitenden haben bei der Arbeit kostengünstig Zugang zu Nahrungsmitteln. "]
[null,"B82","Alle Mitarbeitenden haben während der Arbeit Zugang zu hygienischen Sanitäranlagen."]
[null,"B83","Wir schulen unsere Mitarbeitenden regelmäßig im Bereich Hygiene."]
[null,"B86","Wir bieten unseren Mitarbeitenden flexible Arbeitszeitmodelle an. "]
[null,"B87","Bei uns muss kein Mitarbeitender Schichtarbeit leisten. "]
[null,"B88","Falls Schichtarbeit erforderlich ist, wird diese bei uns unter Kriterien des Gesundheitsschutzes geplant. "]
[null,"B89","Die Überstunden unserer Mitarbeitenden werden erfasst und vergütet bzw. können abgebaut werden. "]
[null,"B90","Alle Mitarbeitenden mit sehr vielen Überstunden werden kontaktiert und ein Plan zur Reduzierung wird mit ihnen erarbeitet. "]
[null,"B91","Wir setzen nicht voraus, dass unsere Mitarbeitenden auch außerhalb ihrer Arbeitszeiten erreichbar sind. "]
[null,"B92","Wir ermöglichen unseren Mitarbeitenden Auszeiten. "]
[null,"B93","Unseren Mitarbeitenden stehen Räume zur Erholung zur Verfügung. "]
[null,"B97","Wir bieten Programme / Angebote an, die unseren Mitarbeitenden den Einstieg nach der Elternzeit etc. vereinfachen."]
[null,"B98","Unser Unternehmen besitzt einen Betriebskindergarten / hilft beim Finden eines KiTa-Platzes."]
[null,"B99","Es ist möglich ein Haustier mit ins Büro zu bringen. "]
[null,"B100","Wir bieten unseren Mitarbeitenden vertragliche bzw. arbeitszeittechnische Flexibilitäten und Unterstützungsangebote, für den Fall, dass sie die Pflege eines Angehörigen übernehmen müssen."]
[null,"B101","Unsere Mitarbeitenden können vollständig im Homeoffice arbeiten. "]
[null,"B102","In Ausnahmefällen können die Homeoffice-Zeiten unserer Mitarbeitenden ausgeweitet werden. "]
[null,"B105","Wir bieten allen Mitarbeitenden verschiedene Möglichkeiten zur Mitbestimmung."]
[null,"B111","Besonderes Engagement im Gesundheits- und Arbeitsschutz wird honoriert. "]
[null,"B112","Wir beteiligen unsere Mitarbeitenden am unternehmerischen Erfolg."]
[null,"B113","Wir haben eine unternehmensweit gültige Leitlinie zu alterns- und altersgerechtem Arbeiten verabschiedet."]
[null,"B114","Unsere Arbeitsplätze werden altersgerecht und alternsgerecht angepasst. "]
[null,"B115","Arbeitsaufgaben werden altersgerecht und alternsgerecht angepasst. "]
[null,"B116","Wir realisieren Programme zum Erfahrungsaustausch zwischen jung und alt. "]
[null,"B117","Ältere Mitarbeitende können über Programme ihre Erfahrungen in die Verbesserung / Entwicklung von Prozessen einbinden. "]
[null,"B118","Wir sichern unsere Mitarbeitenden auch für ihren Lebensabend ab."]
[null,"B119","Wir unterstützen unsere Mitarbeitenden in Rekonvaleszenzzeiten. "]
[null,"B120","Wir unterstützen unsere Mitarbeitenden beim Übergang in die Rente."]
[null,"B121","Chancengleichheit und Gleichberechtigung werden in unserer Unternehmenspolitik festgeschrieben. "]
[null,"B126","Wir sind ein inklusives Unternehmen und stellen auch Mitarbeitende mit Handicap ein. "]
[null,"B127","All unsere Unternehmensstandorte sind barrierefrei. "]
[null,"B128","Wir garantieren auch Mitarbeitenden mit Behinderung einen möglichst normalen Arbeitsalltag, indem wir alle für sie erforderlichen Erleichterungen umsetzen."]
[null,"B130","Bei der Besetzung einer Führungsposition oder eines Sitzes in einem Aufsichtsorgan herrscht für alle qualifizierten Mitarbeitenden Chancengleichheit."]
[null,"B131","Die Höhe von Gehältern ist in unserem Unternehmen vollständig von Ethnie, Geschlecht, Handicap oder Alter unabhängig."]
[null,"B132","Frauen und Männer erhalten in gleichen Positionen das gleiche Gehalt. "]
[null,"B133","Wir zahlen allen unseren Mitarbeitenden weltweit den landesüblichen Mindestlohn bzw. einen Lohn, der mindestens die grundlegenden Lebensbedürfnisse vollständig abdeckt. "]
[null,"B134","Die Vergabe von Beförderungen findet unabhängig von Ethnie, Geschlecht, Handicap oder Alter des Mitarbeitenden statt. "]
[null,"B135","Wir führen mit den Mitarbeitenden regelmäßig ein Performance- und Karriereentwicklungsgespräch."]
[null,"B137","Die Teilnahme an Schulungs- und Fortbildungsmaßnahmen, die die persönliche und berufliche Entwicklung unserer Mitarbeitenden fördert, wird jederzeit ermöglicht."]
[null,"B138","Unsere Mitarbeitenden nehmen regelmäßig an Trainings, Fortbildungsmaßnahmen etc. teil. "]
[null,"B139","Unsere Mitarbeitenden verbleiben lange in unserem Unternehmen. "]
[null,"B140","Wir bieten all unseren Auszubildenden / dualen Studierenden eine Übernahmegarantie."]
[null,"B141","Wir beschäftigen all unsere Beschäftigten unbefristet."]
[null,"B142","Wir bemühen uns befristet Beschäftigten auf lange Sicht eine unbefristete Anstellung anzubieten. "]
[null,"B143","Wir haben eine festgelegte, unternehmensweit gültige Sozialpolitik für ein gutes Miteinander."]
[null,"B144","In unserem Unternehmen sind im letzten Jahr keine Fälle von Diskriminierung gemeldet worden."]
[null,"B145","In unserem Unternehmen sind im letzten Jahr keine Fälle von Belästigung oder Gewalt am Arbeitsplatz gemeldet worden. "]
[null,"B146","Gegen Diskriminierung am Arbeitsplatz verfolgen wir eine Nulltoleranzpolitik."]
[null,"B147","Es existieren Prozesse, über die soziale Risiken identifiziert und bewertet werden. "]
[null,"B148","Es besteht ein definiertes und in der MitarbeiterInnenschaft kommuniziertes Meldesystem für Fälle von Diskriminierung, Gewalt etc.  am Arbeitsplatz."]
[null,"B149","Es besteht eine feste Anlaufstelle für den Fall von Diskriminierung, Belästigung etc."]
[null,"B150","Unsere Mitarbeitenden sind über die Anlaufstelle sowie das Meldesystem für den Fall von Gewalt, Belästigung etc. informiert. "]
[null,"B151","Aufgetretene Fälle von Diskriminierung konnten über Mediationsaktivitäten gelöst werden. "]
[null,"B152","Wir schulen unsere Mitarbeiterschaft regelmäßig zu unserer Sozialpolitik und im Bereich der Sozialkompetenz. "]
[null,"B153","Wir kommunizieren unseren Partnern / Partnerinnen und Zulieferern / Zulieferinnen die SDGs zu denen wir uns bekennen. "]
[null,"B154","Wir achten darauf, dass auch unsere Zulieferer / Zulieferinnen soziale Anspruchskriterien haben und erfüllen."]
[null,"B155","Bei der Auswahl unserer Lieferanten / Lieferantinnen berücksichtigen wir Nachhaltigkeitsstandards."]
[null,"B156","Über regelmäßige Audits prüfen wir den Arbeitsschutz sowie weitere soziale Aspekte bei unseren Zulieferern / Zulieferinnen. "]
[null,"B157","Bei der Auswahl von Zulieferern / Zulieferinnen achten wir darauf, dass in den Unternehmen keine Kinderarbeit stattfindet. "]
[null,"B158","Wir achten darauf, dass unsere Zulieferer / Zulieferinnen ihren Mitarbeitenden mindestens den landesüblichen Mindestlohn zahlen. "]
[null,"SDG 10"]
[null,"B13","Gefährdungsbeurteilungen und Betriebsanweisungen sind für alle Mitarbeitenden jederzeit zugänglich. "]
[null,"B15","Die Mitwirkung aller Mitarbeitenden im Arbeits- und Gesundheitsschutz wird vorausgesetzt und gefördert. "]
[null,"B17","Belange des Arbeits- und Gesundheitsschutzes werden regelmäßig beispielsweise über Versammlungen oder Aushänge an alle Mitarbeitenden kommuniziert. "]
[null,"B22","An keinem unserer Unternehmensstandorte findet Kinderarbeit statt."]
[null,"B49","Wir stellen jedem Mitarbeitendem einen ergonomischen Arbeitsplatz zur Verfügung. "]
[null,"B76","Für Mitarbeitende, die nach längerer Abwesenheit ins Unternehmen zurückkehren, haben wir ein Betriebliches Eingliederungsmanagement (BEM) etabliert. "]
[null,"B77","Für Mitarbeitende, die nach längerer Abwesenheit ins Unternehmen zurückkehren, gibt es einen festen Ansprechpartner /eine Ansprechpartnerin / eine Anlaufstelle für Probleme."]
[null,"B78","Wir gehen proaktiv auf Mitarbeitende zu, die nach längerer Abwesenheit ins Unternehmen zurückkehren, um ihnen bei der Reintegration beizustehen."]
[null,"B79","Alle Mitarbeitenden haben während der Arbeit Zugang zu sauberem Trinkwasser. "]
[null,"B80","Alle Mitarbeitenden haben Zugang zu Wasserspendern."]
[null,"B81","Alle Mitarbeitenden haben bei der Arbeit kostengünstig Zugang zu Nahrungsmitteln. "]
[null,"B82","Alle Mitarbeitenden haben während der Arbeit Zugang zu hygienischen Sanitäranlagen."]
[null,"B89","Die Überstunden unserer Mitarbeitenden werden erfasst und vergütet bzw. können abgebaut werden. "]
[null,"B94","Es ist üblich, dass unsere Mitarbeitenden ihren Anspruch auf Elternzeit etc. in vollem Umfang wahrnehmen. "]
[null,"B95","Es ist üblich, dass unsere Mitarbeitenden nach der Elternzeit etc. ins Unternehmen zurückkehren. "]
[null,"B96","Es ist üblich, dass unsere Mitarbeitenden nach der Elternzeit etc. auf den gleichen Arbeitsplatz zurückkehren. "]
[null,"B97","Wir bieten Programme / Angebote an, die unseren Mitarbeitenden den Einstieg nach der Elternzeit etc. vereinfachen."]
[null,"B98","Unser Unternehmen besitzt einen Betriebskindergarten / hilft beim Finden eines KiTa-Platzes."]
[null,"B100","Wir bieten unseren Mitarbeitenden vertragliche bzw. arbeitszeittechnische Flexibilitäten und Unterstützungsangebote, für den Fall, dass sie die Pflege eines Angehörigen übernehmen müssen."]
[null,"B101","Unsere Mitarbeitenden können vollständig im Homeoffice arbeiten. "]
[null,"B102","In Ausnahmefällen können die Homeoffice-Zeiten unserer Mitarbeitenden ausgeweitet werden. "]
[null,"B103","Unser Unternehmen hat einen Betriebsrat / eine Arbeitnehmervertretung."]
[null,"B104","Wir bieten allen Mitarbeitenden verschiedene Möglichkeiten zur Mitwirkung."]
[null,"B105","Wir bieten allen Mitarbeitenden verschiedene Möglichkeiten zur Mitbestimmung."]
[null,"B106","Unsere Mitarbeitenden können Verbesserungsvorschläge zu allen Unternehmensbereichen einreichen. "]
[null,"B107","Das Ideenmanagement und Vorschlagswesen ist in den persönlichen Zielen unserer Mitarbeitenden und in den Abteilungszielen verankert"]
[null,"B108","Wir haben ein Ideenmanagement und Vorschlagswesen speziell für den Bereich nachhaltige Entwicklung"]
[null,"B109","Mitarbeitende werden für eingereichte Verbesserungsvorschläge honoriert. "]
[null,"B110","Mitarbeitende werden für eingereichte Verbesserungsvorschläge, die in die Praxis umgesetzt werden, honoriert. "]
[null,"B111","Besonderes Engagement im Gesundheits- und Arbeitsschutz wird honoriert. "]
[null,"B112","Wir beteiligen unsere Mitarbeitenden am unternehmerischen Erfolg."]
[null,"B113","Wir haben eine unternehmensweit gültige Leitlinie zu alterns- und altersgerechtem Arbeiten verabschiedet."]
[null,"B114","Unsere Arbeitsplätze werden altersgerecht und alternsgerecht angepasst. "]
[null,"B115","Arbeitsaufgaben werden altersgerecht und alternsgerecht angepasst. "]
[null,"B116","Wir realisieren Programme zum Erfahrungsaustausch zwischen jung und alt. "]
[null,"B117","Ältere Mitarbeitende können über Programme ihre Erfahrungen in die Verbesserung / Entwicklung von Prozessen einbinden. "]
[null,"B118","Wir sichern unsere Mitarbeitenden auch für ihren Lebensabend ab."]
[null,"B120","Wir unterstützen unsere Mitarbeitenden beim Übergang in die Rente."]
[null,"B121","Chancengleichheit und Gleichberechtigung werden in unserer Unternehmenspolitik festgeschrieben. "]
[null,"B122","Unsere Mitarbeiterschaft ist ethnisch divers aufgestellt."]
[null,"B123","Unsere Mitarbeiterschaft vereint verschiedene Altersgruppen miteinander."]
[null,"B124","In unserer Mitarbeiterschaft herrscht ein ausgewogenes Verhältnis zwischen den Geschlechtern."]
[null,"B125","Unsere Personalauswahl findet zu jeder Zeit unabhängig von Ethnie, Geschlecht, Handicap oder Alter des Bewerbenden statt."]
[null,"B126","Wir sind ein inklusives Unternehmen und stellen auch Mitarbeitende mit Handicap ein. "]
[null,"B127","All unsere Unternehmensstandorte sind barrierefrei. "]
[null,"B128","Wir garantieren auch Mitarbeitenden mit Behinderung einen möglichst normalen Arbeitsalltag, indem wir alle für sie erforderlichen Erleichterungen umsetzen."]
[null,"B129","Führungspositionen sowie die Aufsichtsorgane unseres Unternehmens sind divers besetzt."]
[null,"B130","Bei der Besetzung einer Führungsposition oder eines Sitzes in einem Aufsichtsorgan herrscht für alle qualifizierten Mitarbeitenden Chancengleichheit."]
[null,"B131","Die Höhe von Gehältern ist in unserem Unternehmen vollständig von Ethnie, Geschlecht, Handicap oder Alter unabhängig."]
[null,"B132","Frauen und Männer erhalten in gleichen Positionen das gleiche Gehalt. "]
[null,"B133","Wir zahlen allen unseren Mitarbeitenden weltweit den landesüblichen Mindestlohn bzw. einen Lohn, der mindestens die grundlegenden Lebensbedürfnisse vollständig abdeckt. "]
[null,"B134","Die Vergabe von Beförderungen findet unabhängig von Ethnie, Geschlecht, Handicap oder Alter des Mitarbeitenden statt. "]
[null,"B135","Wir führen mit den Mitarbeitenden regelmäßig ein Performance- und Karriereentwicklungsgespräch."]
[null,"B136","Den Mitarbeitenden werden Weiterbildungsmöglichkeiten proaktiv aufgezeigt."]
[null,"B137","Die Teilnahme an Schulungs- und Fortbildungsmaßnahmen, die die persönliche und berufliche Entwicklung unserer Mitarbeitenden fördert, wird jederzeit ermöglicht."]
[null,"B138","Unsere Mitarbeitenden nehmen regelmäßig an Trainings, Fortbildungsmaßnahmen etc. teil. "]
[null,"B140","Wir bieten all unseren Auszubildenden / dualen Studierenden eine Übernahmegarantie."]
[null,"B141","Wir beschäftigen all unsere Beschäftigten unbefristet."]
[null,"B142","Wir bemühen uns befristet Beschäftigten auf lange Sicht eine unbefristete Anstellung anzubieten. "]
[null,"B143","Wir haben eine festgelegte, unternehmensweit gültige Sozialpolitik für ein gutes Miteinander."]
[null,"B144","In unserem Unternehmen sind im letzten Jahr keine Fälle von Diskriminierung gemeldet worden."]
[null,"B145","In unserem Unternehmen sind im letzten Jahr keine Fälle von Belästigung oder Gewalt am Arbeitsplatz gemeldet worden. "]
[null,"B146","Gegen Diskriminierung am Arbeitsplatz verfolgen wir eine Nulltoleranzpolitik."]
[null,"B147","Es existieren Prozesse, über die soziale Risiken identifiziert und bewertet werden. "]
[null,"B148","Es besteht ein definiertes und in der MitarbeiterInnenschaft kommuniziertes Meldesystem für Fälle von Diskriminierung, Gewalt etc.  am Arbeitsplatz."]
[null,"B149","Es besteht eine feste Anlaufstelle für den Fall von Diskriminierung, Belästigung etc."]
[null,"B150","Unsere Mitarbeitenden sind über die Anlaufstelle sowie das Meldesystem für den Fall von Gewalt, Belästigung etc. informiert. "]
[null,"B151","Aufgetretene Fälle von Diskriminierung konnten über Mediationsaktivitäten gelöst werden. "]
[null,"B152","Wir schulen unsere Mitarbeiterschaft regelmäßig zu unserer Sozialpolitik und im Bereich der Sozialkompetenz. "]
[null,"B154","Wir achten darauf, dass auch unsere Zulieferer / Zulieferinnen soziale Anspruchskriterien haben und erfüllen."]
[null,"B156","Über regelmäßige Audits prüfen wir den Arbeitsschutz sowie weitere soziale Aspekte bei unseren Zulieferern / Zulieferinnen. "]
[null,"B157","Bei der Auswahl von Zulieferern / Zulieferinnen achten wir darauf, dass in den Unternehmen keine Kinderarbeit stattfindet. "]
[null,"B158","Wir achten darauf, dass unsere Zulieferer / Zulieferinnen ihren Mitarbeitenden mindestens den landesüblichen Mindestlohn zahlen. "]
[null,"B163","Unsere Produktion gefährdet keine AnwohnerInnen, Gemeindemitglieder o.Ä. "]

{"sheet":"Bewertungs-Template","index":8,"n_rows":5,"n_cols":6,"rows_kept":5,"cut":false,"hidden":true,"merged":[[3,3,4,3],[1,2,1,5],[3,4,3,5],[3,1,4,1],[3,2,4,2]]}
[]
[null,null,"Bewertungsblatt"]
[]
[null,"Indikator-ID","Indikator","Info","Wie sehr stimmt die Leistung Ihres Unternehmens mit der Indikatoraussage überein?"]
[null,null,null,null,"Status-Quo (heute)","Zielwert für 2030"]